Workbook

Sheet README
C7: INSTRUCTIONS
C8: Once basic information is reported on the "General Information" sheet, please report the data in the tables presented in the three following data sheets according to national availability: - "Income" - "Consumption & Saving" (please choose the 'COICOP1999' or 'COICOP2018' sheet dependent on the available macro data) - "Socio-demographic Information" as well as information in the "Meta data" sheet if this questionnaire is filled in for the first time or if information already provided in the past requires any update.
C9: Please also note the following points:
C11: - Formula: Tables in the data sheets already include formulas for the calculation of certain aggregates and sub-aggregates. This is done for convenience, but the results can be overwritten if countries do not have the appropriate underlying detail available. In that case, users can delete the formula and report the value directly.
C12: - Signs: Generally, values should be reported with a positive sign, also for those transactions which negatively contribute (i.e., components on the 'use' side, coded with 'P' for 'paid') to the computation of the balancing items (such as B5, B6, B8, etc.). The only exceptions are the following: i. Data for FISIM on the use side (D41P_FISIM) on the "Income" sheet which should be reported with a negative sign. ii. Data for those transactions that might assume a negative value by definition can be reported with a negative sign if these indeed show a negative result. This concerns on the "Income" sheet: B2Rg+B3Rg, B2Rn+B3Rn, B2Rg, B2Rn, B2R1g, B2R2g, B3Rg, B3Rn, B3R1g, B3R2g, B3R3g, D4N, D43R, B5g, B5n, D7N, D72R-D71P, D75N, D75x, B6g, B6n, B7g and B7n; on the "Consumption & Saving" sheet: CP071, P33-P34, B7g, B7n, D8R, B8g, B8n, D2-D3, D21-D31, D29-D39, XDHHCE, XDHHCE2 and XDHHCEX. On the "Socio-demographic Information" sheet all items should be reported with a positive sign.
C13: - Optional breakdown: The "Income" and "Consumption & Saving" sheets include optional breakdowns for which you are encouraged to provide data if available, along with those for the "standard" breakdown by quintiles or deciles.
C14: - Missing data and zeroes: For missing data, the values should be reported either as “NAP” (i.e., non-applicable) if it is not applicable for a country, or as “NAV” (i.e., non-available) if it is applicable but not compiled in the exercise. Zero values (“0”) should only be reported when data are applicable and actually computed as equal to zero. No cells in the data field should be left blank.
C15: - Reporting practices: Please use a separate Excel template file for each year for which you wish to report the data (i.e., do not add extra sheets within a single file).
C17: For more details see the reporting instructions.

Sheet General info
B7: OECD and Eurostat Data Collection on Distributional Information on Household Income, Consumption and Saving
B12: Country | C12: Latvia
B13: Institution | C13: Central Statistical Bureau of Latvia
B14: Year | C14: 2019
B15: Currency | C15: EUR
B16: Unit | C16: thousand
B18: Contact details
B19: Main contact
B20: Name | C20: Inese Medne
B21: Position in the institution | C21: Deputy Department Director of the National Accounts Methodology section
B22: E-mail | C22: inese.medne@csp.gov.lv
B23: Phone number
B24: Template prepared by
B25: Name | C25: Inese Pereverteņa
B26: Position in the institution | C26: Senior expert of the National Accounts Methodology section
B27: E-mail | C27: inese.perevertena@csp.gov.lv
B28: Phone number

Sheet Income
B4: Income | D4: Method(s) used | F4: National Accounts Households S14 | J4: Micro Source | K4: Discrepancy | M4: Quintiles Q1 + Q2 + Q3 + Q4 + Q5 = Private households (B3) | S4: Deciles D1 + D2 + D3 + D4 + D5 + D6 + D7 + D8 + D9 + D10 = Private households (B3) | AD4: Percentile and other information | AJ4: Household type Σ of groups = Private households (B3) | AS4: Main source of income Σ of groups = Private households (B3)
F5: Original estimates | H5: Adjusted estimates | J5: Aggregate | M5: Q1 | N5: Q2 | O5: Q3 | P5: Q4 | Q5: Q5 | S5: D1 | T5: D2 | U5: D3 | V5: D4 | W5: D5 | X5: D6 | Y5: D7 | Z5: D8 | AA5: D9 | AB5: D10 | AD5: Bottom 5% | AE5: Top 5% | AF5: Top 1% | AG5: Top 0.1% | AJ5: Single less 65 year old | AK5: Single 65 and older | AL5: Single with children living at home | AM5: Two adults less than 65 no child living at home | AN5: Two adults at least one 65 or older no child living at home | AO5: Two adults with less than 3 children living at home | AP5: Two adults with at least 3 children living at home | AQ5: Others | AS5: Wages and salaries | AT5: Income from self-employment | AU5: Net property income | AV5: Current transfers received
A6: dotstatcode | F6: Total of S14 + S15 (A) | G6: Total of S14 (B1 = B2 + B3) | H6: Institutional households (B2) | I6: Private households (B3) | J6: (C) | K6: D = B3 - C | AV6: Total | AW6: of which: Pension transfer received | AX6: of which: Other transfer received
A7: B2_B3 | B7: B2Rg+B3Rg | C7: Gross operating surplus and mixed income | D7: Select a method | F7: =IF(OR(F8="",F11="",F8="NAV",F11="NAV",F8="-",F11="-",ISERROR(SUM(F8,F11))),"-",SUM(F8,F11)) -> - | G7: =IF(OR(G8="",G11="",G8="NAV",G11="NAV",G8="-",G11="-",ISERROR(SUM(G8,G11))),"-",SUM(G8,G11)) -> 2466360.961 | H7: - | I7: 2466360.961 | J7: 2210036.298 | K7: =I7-J7 -> 256324.6635 | M7: =IF(OR(M8="",M11="",M8="NAV",M11="NAV",M8="-",M11="-",ISERROR(SUM(M8,M11))),"-",SUM(M8,M11)) -> 235098.6366 | N7: 340045.1641 | O7: 429382.4282 | P7: 544712.1565 | Q7: 917122.5757 | S7: =IF(OR(S8="",S11="",S8="NAV",S11="NAV",S8="-",S11="-",ISERROR(SUM(S8,S11))),"-",SUM(S8,S11)) -> - | T7: - | U7: - | V7: - | W7: - | X7: - | Y7: - | Z7: - | AA7: - | AB7: - | AD7: =IF(OR(AD8="",AD11="",AD8="NAV",AD11="NAV",AD8="-",AD11="-",ISERROR(SUM(AD8,AD11))),"-",SUM(AD8,AD11)) -> - | AE7: - | AF7: - | AG7: - | AJ7: =IF(OR(AJ8="",AJ11="",AJ8="NAV",AJ11="NAV",AJ8="-",AJ11="-",ISERROR(SUM(AJ8,AJ11))),"-",SUM(AJ8,AJ11)) -> - | AK7: - | AL7: - | AM7: - | AN7: - | AO7: - | AP7: - | AQ7: - | AS7: =IF(OR(AS8="",AS11="",AS8="NAV",AS11="NAV",AS8="-",AS11="-",ISERROR(SUM(AS8,AS11))),"-",SUM(AS8,AS11)) -> - | AT7: - | AU7: - | AV7: - | AW7: - | AX7: -
A8: B2 | B8: B2Rg | C8: Gross operating surplus | D8: Select a method | F8: =IF(OR(F9="",F10="",F9="NAV",F10="NAV",ISERROR(SUM(F9,F10))),"-",SUM(F9,F10)) -> - | G8: =IF(OR(G9="",G10="",G9="NAV",G10="NAV",ISERROR(SUM(G9,G10))),"-",SUM(G9,G10)) -> 1066065.746 | H8: - | I8: 1066065.746 | J8: 1516870.228 | K8: -450804.4822 | M8: =IF(OR(M9="",M10="",M9="NAV",M10="NAV",ISERROR(SUM(M9,M10))),"-",SUM(M9,M10)) -> 118518.1557 | N8: 166002.3969 | O8: 194895.7213 | P8: 240448.8502 | Q8: 346200.6215 | S8: =IF(OR(S9="",S10="",S9="NAV",S10="NAV",ISERROR(SUM(S9,S10))),"-",SUM(S9,S10)) -> - | T8: - | U8: - | V8: - | W8: - | X8: - | Y8: - | Z8: - | AA8: - | AB8: - | AD8: =IF(OR(AD9="",AD10="",AD9="NAV",AD10="NAV",ISERROR(SUM(AD9,AD10))),"-",SUM(AD9,AD10)) -> - | AE8: - | AF8: - | AG8: - | AJ8: =IF(OR(AJ9="",AJ10="",AJ9="NAV",AJ10="NAV",ISERROR(SUM(AJ9,AJ10))),"-",SUM(AJ9,AJ10)) -> - | AK8: - | AL8: - | AM8: - | AN8: - | AO8: - | AP8: - | AQ8: - | AS8: =IF(OR(AS9="",AS10="",AS9="NAV",AS10="NAV",ISERROR(SUM(AS9,AS10))),"-",SUM(AS9,AS10)) -> - | AT8: - | AU8: - | AV8: - | AW8: - | AX8: -
A9: B21 | B9: B2R1g | C9: Owner occupied dwellings | D9: A | G9: 1047857.523 | I9: =G9-H9 -> 1047857.523 | J9: 1385444.1 | K9: -337586.5767 | M9: 118076.0966 | N9: 164753.3951 | O9: 193042.4478 | P9: 237881.8696 | Q9: 334103.7144
A10: B22 | B10: B2R2g | C10: Leasing of dwellings | D10: A | G10: 18208.22226 | I10: =G10-H10 -> 18208.22226 | J10: 131426.1277 | K10: -113217.9055 | M10: 442.0591247 | N10: 1249.001819 | O10: 1853.273542 | P10: 2566.980664 | Q10: 12096.90711
A11: B3 | B11: B3Rg | C11: Gross mixed income | D11: Select a method | F11: =IF(OR(F12="",F17="",F22="",F12="NAV",F17="NAV",F22="NAV",ISERROR(SUM(F12,F17,F22))),"-",SUM(F12,F17,F22)) -> - | G11: =IF(OR(G12="",G17="",G22="",G12="NAV",G17="NAV",G22="NAV",ISERROR(SUM(G12,G17,G22))),"-",SUM(G12,G17,G22)) -> 1400295.216 | H11: - | I11: 1400295.216 | J11: 693166.07 | K11: 707129.1458 | M11: =IF(OR(M12="",M17="",M22="",M12="NAV",M17="NAV",M22="NAV",ISERROR(SUM(M12,M17,M22))),"-",SUM(M12,M17,M22)) -> 116580.4809 | N11: 174042.7671 | O11: 234486.7069 | P11: 304263.3063 | Q11: 570921.9542 | S11: =IF(OR(S12="",S17="",S22="",S12="NAV",S17="NAV",S22="NAV",ISERROR(SUM(S12,S17,S22))),"-",SUM(S12,S17,S22)) -> - | T11: - | U11: - | V11: - | W11: - | X11: - | Y11: - | Z11: - | AA11: - | AB11: - | AD11: =IF(OR(AD12="",AD17="",AD22="",AD12="NAV",AD17="NAV",AD22="NAV",ISERROR(SUM(AD12,AD17,AD22))),"-",SUM(AD12,AD17,AD22)) -> - | AE11: - | AF11: - | AG11: - | AJ11: =IF(OR(AJ12="",AJ17="",AJ22="",AJ12="NAV",AJ17="NAV",AJ22="NAV",ISERROR(SUM(AJ12,AJ17,AJ22))),"-",SUM(AJ12,AJ17,AJ22)) -> - | AK11: - | AL11: - | AM11: - | AN11: - | AO11: - | AP11: - | AQ11: - | AS11: =IF(OR(AS12="",AS17="",AS22="",AS12="NAV",AS17="NAV",AS22="NAV",ISERROR(SUM(AS12,AS17,AS22))),"-",SUM(AS12,AS17,AS22)) -> - | AT11: - | AU11: - | AV11: - | AW11: - | AX11: -
A12: B31 | B12: B3R1g | C12: Own account production | D12: Mixed | G12: 207261.4464 | I12: =G12-H12 -> 207261.4464 | J12: 182341.3557 | K12: 24920.09071 | M12: 29363.29917 | N12: 37114.01117 | O12: 37887.47775 | P12: 46471.74353 | Q12: 56424.91479
C13: A -- components which are a true match | I13: 0 | J13: 0 | K13: =I13-J13 -> 0
C14: B -- components which are proxies | I14: 0 | J14: 0 | K14: 0
C15: C -- components which are derived from auxiliary info | I15: 0 | J15: 0 | K15: 0
C16: D -- components which have no info | I16: 0 | J16: 0 | K16: 0
A17: B32 | B17: B3R2g | C17: Underground production | D17: Mixed | G17: 499813.2002 | I17: =G17-H17 -> 499813.2002 | J17: 0 | K17: 499813.2002 | M17: 48234.33919 | N17: 84928.58045 | O17: 113488.4563 | P17: 127790.5805 | Q17: 125371.2438
C18: A -- components which are a true match | I18: 0 | J18: 0 | K18: 0
C19: B -- components which are proxies | I19: 0 | J19: 0 | K19: 0
C20: C -- components which are derived from auxiliary info | I20: 0 | J20: 0 | K20: 0
C21: D -- components which have no info | I21: 0 | J21: 0 | K21: 0
A22: B33 | B22: B3R3g | C22: Mixed income excluding underground and own account production | D22: Mixed | G22: 693220.5691 | I22: =G22-H22 -> 693220.5691 | J22: 510824.7143 | K22: 182395.8548 | M22: 38982.84252 | N22: 52000.17551 | O22: 83110.7729 | P22: 130000.9822 | Q22: 389125.7956
C23: A -- components which are a true match | I23: 0 | J23: 0 | K23: 0
C24: B -- components which are proxies | I24: 0 | J24: 0 | K24: 0
C25: C -- components which are derived from auxiliary info | I25: 0 | J25: 0 | K25: 0
C26: D -- components which have no info | I26: 0 | J26: 0 | K26: 0
A27: D1R | B27: D1R | C27: Compensation of employees | D27: Select a method | F27: =IF(OR(F28="",F29="",F30="",F28="NAV",F29="NAV",F30="NAV",ISERROR(SUM(F28,F29,F30))),"-",SUM(F28,F29,F30)) -> - | G27: =IF(OR(G28="",G29="",G30="",G28="NAV",G29="NAV",G30="NAV",ISERROR(SUM(G28,G29,G30))),"-",SUM(G28,G29,G30)) -> 15437702.29 | H27: 8405.526787 | I27: 15429296.77 | J27: 14465937.79 | K27: =I27-J27 -> 963358.9719 | M27: =IF(OR(M28="",M29="",M30="",M28="NAV",M29="NAV",M30="NAV",ISERROR(SUM(M28,M29,M30))),"-",SUM(M28,M29,M30)) -> 419259.7217 | N27: 1259880.611 | O27: 2564076.411 | P27: 3942384.303 | Q27: 7243695.719 | S27: =IF(OR(S28="",S29="",S30="",S28="NAV",S29="NAV",S30="NAV",ISERROR(SUM(S28,S29,S30))),"-",SUM(S28,S29,S30)) -> - | T27: - | U27: - | V27: - | W27: - | X27: - | Y27: - | Z27: - | AA27: - | AB27: - | AD27: =IF(OR(AD28="",AD29="",AD30="",AD28="NAV",AD29="NAV",AD30="NAV",ISERROR(SUM(AD28,AD29,AD30))),"-",SUM(AD28,AD29,AD30)) -> - | AE27: - | AF27: - | AG27: - | AJ27: =IF(OR(AJ28="",AJ29="",AJ30="",AJ28="NAV",AJ29="NAV",AJ30="NAV",ISERROR(SUM(AJ28,AJ29,AJ30))),"-",SUM(AJ28,AJ29,AJ30)) -> - | AK27: - | AL27: - | AM27: - | AN27: - | AO27: - | AP27: - | AQ27: - | AS27: =IF(OR(AS28="",AS29="",AS30="",AS28="NAV",AS29="NAV",AS30="NAV",ISERROR(SUM(AS28,AS29,AS30))),"-",SUM(AS28,AS29,AS30)) -> - | AT27: - | AU27: - | AV27: - | AW27: - | AX27: -
A28: D11R | B28: D11R | C28: Wages and salaries | D28: A | G28: 12733602.42 | H28: 6662.777902 | I28: =G28-H28 -> 12726939.64 | J28: 12050056.52 | K28: 676883.1187 | M28: 348841.2813 | N28: 1040906.299 | O28: 2109425.191 | P28: 3249120.816 | Q28: 5978646.054
A29: D121R | B29: D121R | C29: Employers' actual social contributions (counterpart in D611) | D29: A | G29: 2451676.733 | H29: 1605.063196 | I29: =G29-H29 -> 2450071.67 | J29: 2415881.27 | K29: 34190.39981 | M29: 63465.80545 | N29: 198259.284 | O29: 412737.6004 | P29: 628726.7298 | Q29: 1146882.251
A30: D122R | B30: D122R | C30: Employers' imputed social contributions (counterpart in D612) | D30: B | G30: 252423.1391 | H30: 137.6856888 | I30: 252285.4534 | J30: 0 | K30: 252285.4534 | M30: 6952.634954 | N30: 20715.02767 | O30: 41913.62009 | P30: 64536.75668 | Q30: 118167.414
A31: D4N | B31: D4N | C31: Net property income received | D31: Select a method | F31: =IF(OR(F32="",F49="",F32="NAV",F49="NAV",F32="-",F49="-",ISERROR(SUM(F32,-(IF(F49="NAP",0,F49))))),"-",SUM(F32,-(IF(F49="NAP",0,F49)))) -> - | G31: =IF(OR(G32="",G49="",G32="NAV",G49="NAV",G32="-",G49="-",ISERROR(SUM(G32,-(IF(G49="NAP",0,G49))))),"-",SUM(G32,-(IF(G49="NAP",0,G49)))) -> 1438370.125 | H31: - | I31: 1438370.125 | J31: -32941.56466 | K31: 1471311.69 | M31: =IF(OR(M32="",M49="",M32="NAV",M49="NAV",M32="-",M49="-",ISERROR(SUM(M32,-(IF(M49="NAP",0,M49))))),"-",SUM(M32,-(IF(M49="NAP",0,M49)))) -> 4171.233894 | N31: 4333.331657 | O31: 7910.654644 | P31: -2844.305297 | Q31: 1424799.21 | S31: =IF(OR(S32="",S49="",S32="NAV",S49="NAV",S32="-",S49="-",ISERROR(SUM(S32,-(IF(S49="NAP",0,S49))))),"-",SUM(S32,-(IF(S49="NAP",0,S49)))) -> - | T31: - | U31: - | V31: - | W31: - | X31: - | Y31: - | Z31: - | AA31: - | AB31: - | AD31: =IF(OR(AD32="",AD49="",AD32="NAV",AD49="NAV",AD32="-",AD49="-",ISERROR(SUM(AD32,-(IF(AD49="NAP",0,AD49))))),"-",SUM(AD32,-(IF(AD49="NAP",0,AD49)))) -> - | AE31: - | AF31: - | AG31: - | AJ31: =IF(OR(AJ32="",AJ49="",AJ32="NAV",AJ49="NAV",AJ32="-",AJ49="-",ISERROR(SUM(AJ32,-(IF(AJ49="NAP",0,AJ49))))),"-",SUM(AJ32,-(IF(AJ49="NAP",0,AJ49)))) -> - | AK31: - | AL31: - | AM31: - | AN31: - | AO31: - | AP31: - | AQ31: - | AS31: =IF(OR(AS32="",AS49="",AS32="NAV",AS49="NAV",AS32="-",AS49="-",ISERROR(SUM(AS32,-(IF(AS49="NAP",0,AS49))))),"-",SUM(AS32,-(IF(AS49="NAP",0,AS49)))) -> - | AT31: - | AU31: - | AV31: - | AW31: - | AX31: -
A32: D4R | B32: D4R | C32: Property income received | D32: Select a method | F32: =IF(OR(F33="",F40="",F41="",F42="",F48="",F33="NAV",F40="NAV",F41="NAV",F42="NAV",F48="NAV",F33="-",F40="-",F41="-",F42="-",F48="-",ISERROR(SUM(F33,F40,F41,F42,F48))),"-",SUM(F33,F40,F41,F42,F48)) -> - | G32: =IF(OR(G33="",G40="",G41="",G42="",G48="",G33="NAV",G40="NAV",G41="NAV",G42="NAV",G48="NAV",G33="-",G40="-",G41="-",G42="-",G48="-",ISERROR(SUM(G33,G40,G41,G42,G48))),"-",SUM(G33,G40,G41,G42,G48)) -> 1635605.526 | H32: - | I32: 1635605.526 | J32: 129487.9146 | K32: 1506117.611 | M32: =IF(OR(M33="",M40="",M41="",M42="",M48="",M33="NAV",M40="NAV",M41="NAV",M42="NAV",M48="NAV",M33="-",M40="-",M41="-",M42="-",M48="-",ISERROR(SUM(M33,M40,M41,M42,M48))),"-",SUM(M33,M40,M41,M42,M48)) -> 15517.71296 | N32: 25713.04801 | O32: 36457.54124 | P32: 44011.70495 | Q32: 1513905.519 | S32: =IF(OR(S33="",S40="",S41="",S42="",S48="",S33="NAV",S40="NAV",S41="NAV",S42="NAV",S48="NAV",S33="-",S40="-",S41="-",S42="-",S48="-",ISERROR(SUM(S33,S40,S41,S42,S48))),"-",SUM(S33,S40,S41,S42,S48)) -> - | T32: - | U32: - | V32: - | W32: - | X32: - | Y32: - | Z32: - | AA32: - | AB32: - | AD32: =IF(OR(AD33="",AD40="",AD41="",AD42="",AD48="",AD33="NAV",AD40="NAV",AD41="NAV",AD42="NAV",AD48="NAV",AD33="-",AD40="-",AD41="-",AD42="-",AD48="-",ISERROR(SUM(AD33,AD40,AD41,AD42,AD48))),"-",SUM(AD33,AD40,AD41,AD42,AD48)) -> - | AE32: - | AF32: - | AG32: - | AJ32: =IF(OR(AJ33="",AJ40="",AJ41="",AJ42="",AJ48="",AJ33="NAV",AJ40="NAV",AJ41="NAV",AJ42="NAV",AJ48="NAV",AJ33="-",AJ40="-",AJ41="-",AJ42="-",AJ48="-",ISERROR(SUM(AJ33,AJ40,AJ41,AJ42,AJ48))),"-",SUM(AJ33,AJ40,AJ41,AJ42,AJ48)) -> - | AK32: - | AL32: - | AM32: - | AN32: - | AO32: - | AP32: - | AQ32: - | AS32: =IF(OR(AS33="",AS40="",AS41="",AS42="",AS48="",AS33="NAV",AS40="NAV",AS41="NAV",AS42="NAV",AS48="NAV",AS33="-",AS40="-",AS41="-",AS42="-",AS48="-",ISERROR(SUM(AS33,AS40,AS41,AS42,AS48))),"-",SUM(AS33,AS40,AS41,AS42,AS48)) -> - | AT32: - | AU32: - | AV32: - | AW32: - | AX32: -
A33: D41R | B33: D41R | C33: Interest received | D33: Select a method | F33: =IF(OR(F34="",F39="",F34="NAV",F39="NAV",F34="-",F39="-",ISERROR(SUM(F34,F39))),"-",SUM(F34,F39)) -> - | G33: =IF(OR(G34="",G39="",G34="NAV",G39="NAV",G34="-",G39="-",ISERROR(SUM(G34,G39))),"-",SUM(G34,G39)) -> 75983.01307 | H33: - | I33: 75983.01307 | J33: 11515.50206 | K33: 64467.511 | M33: =IF(OR(M34="",M39="",M34="NAV",M39="NAV",M34="-",M39="-",ISERROR(SUM(M34,M39))),"-",SUM(M34,M39)) -> 7372.62169 | N33: 9456.85899 | O33: 9505.497127 | P33: 14512.38128 | Q33: 35135.65398 | S33: =IF(OR(S34="",S39="",S34="NAV",S39="NAV",S34="-",S39="-",ISERROR(SUM(S34,S39))),"-",SUM(S34,S39)) -> - | T33: - | U33: - | V33: - | W33: - | X33: - | Y33: - | Z33: - | AA33: - | AB33: - | AD33: =IF(OR(AD34="",AD39="",AD34="NAV",AD39="NAV",AD34="-",AD39="-",ISERROR(SUM(AD34,AD39))),"-",SUM(AD34,AD39)) -> - | AE33: - | AF33: - | AG33: - | AJ33: =IF(OR(AJ34="",AJ39="",AJ34="NAV",AJ39="NAV",AJ34="-",AJ39="-",ISERROR(SUM(AJ34,AJ39))),"-",SUM(AJ34,AJ39)) -> - | AK33: - | AL33: - | AM33: - | AN33: - | AO33: - | AP33: - | AQ33: - | AS33: =IF(OR(AS34="",AS39="",AS34="NAV",AS39="NAV",AS34="-",AS39="-",ISERROR(SUM(AS34,AS39))),"-",SUM(AS34,AS39)) -> - | AT33: - | AU33: - | AV33: - | AW33: - | AX33: -
A34: D41R_microconcept | B34: D41R' | C34: Interest received (not adjusted for FISIM) | D34: Mixed | G34: 22891.99676 | I34: =G34-H34 -> 22891.99676 | J34: 11515.50206 | K34: 11376.4947 | M34: 2221.207412 | N34: 2849.141889 | O34: 2863.795481 | P34: 4372.258638 | Q34: 10585.59334
C35: A -- components which are a true match | I35: 0 | J35: 0 | K35: =I35-J35 -> 0
C36: B -- components which are proxies | I36: 0 | J36: 0 | K36: 0
C37: C -- components which are derived from auxiliary info | I37: 0 | J37: 0 | K37: 0
C38: D -- components which have no info | I38: 0 | J38: 0 | K38: 0
A39: D41R_FISIM | B39: D41R_FISIM | C39: Adjustment for FISIM (positive sign) | D39: B | G39: 53091.01631 | I39: 53091.01631 | J39: 0 | K39: 53091.01631 | M39: 5151.414277 | N39: 6607.717101 | O39: 6641.701646 | P39: 10140.12264 | Q39: 24550.06064
A40: D42R | B40: D42R | C40: Distributed income of corporations | D40: B | F40: 1418951.598 | G40: 1418951.598 | H40: =F40-G40 -> 0 | I40: =G40-H40 -> 1418951.598 | J40: 117972.4126 | K40: =I40-J40 -> 1300979.186 | M40: 108.0174889 | N40: 924.6760672 | O40: 6859.649339 | P40: 3992.232829 | Q40: 1407067.023
A41: D43R | B41: D43R | C41: Reinvested earnings on foreign direct investment | D41: Select a method | G41: 0 | H41: 0 | I41: =G41-H41 -> 0 | J41: 0 | K41: =I41-J41 -> 0 | M41: 0 | N41: 0 | O41: 0 | P41: 0 | Q41: 0
A42: D44R | B42: D44R | C42: Investment income disbursements | D42: Select a method | F42: =IF(OR(F43="",F46="",F47="",F43="NAV", F46="NAV",F47="NAV",ISERROR(SUM(F43,F46, F47))),"-",SUM(F43, F46,F47)) -> - | G42: =IF(OR(G43="",G46="",G47="",G43="NAV", G46="NAV",G47="NAV",ISERROR(SUM(G43,G46, G47))),"-",SUM(G43, G46,G47)) -> 61187.37486 | H42: =IF(OR(H43="",H46="",H47="",H43="NAV", H46="NAV",H47="NAV",ISERROR(SUM(H43,H46, H47))),"-",SUM(H43, H46,H47)) -> - | I42: 61187.37486 | J42: 0 | K42: =I42-J42 -> 61187.37486 | M42: =IF(OR(M43="",M46="",M47="",M43="NAV", M46="NAV",M47="NAV",ISERROR(SUM(M43,M46, M47))),"-",SUM(M43, M46,M47)) -> 6107.372822 | N42: 9879.301075 | O42: 12002.38252 | P42: 14301.56476 | Q42: 18896.75368 | S42: =IF(OR(S43="",S46="",S47="",S43="NAV", S46="NAV",S47="NAV",ISERROR(SUM(S43,S46, S47))),"-",SUM(S43, S46,S47)) -> - | T42: - | U42: - | V42: - | W42: - | X42: - | Y42: - | Z42: - | AA42: - | AB42: - | AD42: =IF(OR(AD43="",AD46="",AD47="",AD43="NAV", AD46="NAV",AD47="NAV",ISERROR(SUM(AD43,AD46, AD47))),"-",SUM(AD43, AD46,AD47)) -> - | AE42: - | AF42: - | AG42: - | AJ42: =IF(OR(AJ43="",AJ46="",AJ47="",AJ43="NAV", AJ46="NAV",AJ47="NAV",ISERROR(SUM(AJ43,AJ46, AJ47))),"-",SUM(AJ43, AJ46,AJ47)) -> - | AK42: - | AL42: - | AM42: - | AN42: - | AO42: - | AP42: - | AQ42: - | AS42: =IF(OR(AS43="",AS46="",AS47="",AS43="NAV", AS46="NAV",AS47="NAV",ISERROR(SUM(AS43,AS46, AS47))),"-",SUM(AS43, AS46,AS47)) -> - | AT42: - | AU42: - | AV42: - | AW42: - | AX42: -
A43: D441R | B43: D441R | C43: Investment income attributable to insurance policy holders | D43: Select a method | F43: =IF(OR(F44="",F45="",F44="NAV",F45="NAV",ISERROR(SUM(F44,F45))),"-",SUM(F44,F45)) -> - | G43: =IF(OR(G44="",G45="",G44="NAV",G45="NAV",ISERROR(SUM(G44,G45))),"-",SUM(G44,G45)) -> 2427.480296 | H43: - | I43: 2427.480296 | J43: 0 | K43: =I43-J43 -> 2427.480296 | M43: =IF(OR(M44="",M45="",M44="NAV",M45="NAV",ISERROR(SUM(M44,M45))),"-",SUM(M44,M45)) -> 199.7645855 | N43: 499.6219003 | O43: 424.4386625 | P43: 628.1401011 | Q43: 675.5150463 | S43: =IF(OR(S44="",S45="",S44="NAV",S45="NAV",ISERROR(SUM(S44,S45))),"-",SUM(S44,S45)) -> - | T43: - | U43: - | V43: - | W43: - | X43: - | Y43: - | Z43: - | AA43: - | AB43: - | AD43: =IF(OR(AD44="",AD45="",AD44="NAV",AD45="NAV",ISERROR(SUM(AD44,AD45))),"-",SUM(AD44,AD45)) -> - | AE43: - | AF43: - | AG43: - | AJ43: =IF(OR(AJ44="",AJ45="",AJ44="NAV",AJ45="NAV",ISERROR(SUM(AJ44,AJ45))),"-",SUM(AJ44,AJ45)) -> - | AK43: - | AL43: - | AM43: - | AN43: - | AO43: - | AP43: - | AQ43: - | AS43: =IF(OR(AS44="",AS45="",AS44="NAV",AS45="NAV",ISERROR(SUM(AS44,AS45))),"-",SUM(AS44,AS45)) -> - | AT43: - | AU43: - | AV43: - | AW43: - | AX43: -
A44: D441AR | B44: D441AR | C44: Property income received attributed to non-life insurance policy holders (included in current transfers) | D44: Select a method | G44: 0 | I44: =G44-H44 -> 0 | J44: 0 | K44: 0 | M44: 0 | N44: 0 | O44: 0 | P44: 0 | Q44: 0
A45: D441BR | B45: D441BR | C45: Property income received attributed to life insurance policy holders | D45: B | F45: 2427.480296 | G45: 2427.480296 | I45: 2427.480296 | J45: 0 | K45: 2427.480296 | M45: 199.7645855 | N45: 499.6219003 | O45: 424.4386625 | P45: 628.1401011 | Q45: 675.5150463
A46: D442R | B46: D442R | C46: Investment income payable on pension entitlements (included in net social contributions paid) | D46: B | F46: 57609 | G46: 57609 | I46: 57609 | J46: 0 | K46: 57609 | M46: 5800.188692 | N46: 9178.891684 | O46: 11410.57671 | P46: 13366.28403 | Q46: 17853.05889
A47: D443R | B47: D443R | C47: Investment income attributable to collective investment funds share holders | D47: B | G47: 1150.89456 | I47: 1150.89456 | J47: 0 | K47: 1150.89456 | M47: 107.4195447 | N47: 200.7874904 | O47: 167.3671547 | P47: 307.1406256 | Q47: 368.1797447
A48: D45R | B48: D45R | C48: Rent received | D48: A | G48: 79483.53968 | I48: =G48-H48 -> 79483.53968 | J48: 0 | K48: =I48-J48 -> 79483.53968 | M48: 1929.70096 | N48: 5452.211877 | O48: 8090.01225 | P48: 11205.52608 | Q48: 52806.08851
A49: D4P | B49: D4P | C49: Property income paid | D49: Select a method | F49: =IF(OR(F50="",F53="",F50="NAV",F53="NAV",ISERROR(SUM(F50,F53))),"-",SUM(F50,F53)) -> - | G49: =IF(OR(G50="",G53="",G50="NAV",G53="NAV",ISERROR(SUM(G50,G53))),"-",SUM(G50,G53)) -> 197235.4007 | H49: - | I49: 197235.4007 | J49: 162429.4793 | K49: 34805.92142 | M49: =IF(OR(M50="",M53="",M50="NAV",M53="NAV",ISERROR(SUM(M50,M53))),"-",SUM(M50,M53)) -> 11346.47907 | N49: 21379.71635 | O49: 28546.88659 | P49: 46856.01024 | Q49: 89106.30847 | S49: =IF(OR(S50="",S53="",S50="NAV",S53="NAV",ISERROR(SUM(S50,S53))),"-",SUM(S50,S53)) -> - | T49: - | U49: - | V49: - | W49: - | X49: - | Y49: - | Z49: - | AA49: - | AB49: - | AD49: =IF(OR(AD50="",AD53="",AD50="NAV",AD53="NAV",ISERROR(SUM(AD50,AD53))),"-",SUM(AD50,AD53)) -> - | AE49: - | AF49: - | AG49: - | AJ49: =IF(OR(AJ50="",AJ53="",AJ50="NAV",AJ53="NAV",ISERROR(SUM(AJ50,AJ53))),"-",SUM(AJ50,AJ53)) -> - | AK49: - | AL49: - | AM49: - | AN49: - | AO49: - | AP49: - | AQ49: - | AS49: =IF(OR(AS50="",AS53="",AS50="NAV",AS53="NAV",ISERROR(SUM(AS50,AS53))),"-",SUM(AS50,AS53)) -> - | AT49: - | AU49: - | AV49: - | AW49: - | AX49: -
A50: D41P | B50: D41P | C50: Interest paid | D50: Select a method | F50: =IF(OR(F51="",F52="",F51="NAV",F52="NAV",F51="-",F52="-",ISERROR(SUM(F51,F52))),"-",SUM(F51,F52)) -> - | G50: =IF(OR(G51="",G52="",G51="NAV",G52="NAV",G51="-",G52="-",ISERROR(SUM(G51,G52))),"-",SUM(G51,G52)) -> 176477.0385 | H50: - | I50: 176477.0385 | J50: 162429.4793 | K50: 14047.55917 | M50: =IF(OR(M51="",M52="",M51="NAV",M52="NAV",M51="-",M52="-",ISERROR(SUM(M51,M52))),"-",SUM(M51,M52)) -> 6553.169304 | N50: 17375.71231 | O50: 23947.09911 | P50: 43407.54489 | Q50: 85193.51287 | S50: =IF(OR(S51="",S52="",S51="NAV",S52="NAV",S51="-",S52="-",ISERROR(SUM(S51,S52))),"-",SUM(S51,S52)) -> - | T50: - | U50: - | V50: - | W50: - | X50: - | Y50: - | Z50: - | AA50: - | AB50: - | AD50: =IF(OR(AD51="",AD52="",AD51="NAV",AD52="NAV",AD51="-",AD52="-",ISERROR(SUM(AD51,AD52))),"-",SUM(AD51,AD52)) -> - | AE50: - | AF50: - | AG50: - | AJ50: =IF(OR(AJ51="",AJ52="",AJ51="NAV",AJ52="NAV",AJ51="-",AJ52="-",ISERROR(SUM(AJ51,AJ52))),"-",SUM(AJ51,AJ52)) -> - | AK50: - | AL50: - | AM50: - | AN50: - | AO50: - | AP50: - | AQ50: - | AS50: =IF(OR(AS51="",AS52="",AS51="NAV",AS52="NAV",AS51="-",AS52="-",ISERROR(SUM(AS51,AS52))),"-",SUM(AS51,AS52)) -> - | AT50: - | AU50: - | AV50: - | AW50: - | AX50: -
A51: D41P_microconcept | B51: D41P' | C51: Interest paid (not adjusted for FISIM) | D51: B | G51: 443391.9989 | I51: =G51-H51 -> 443391.9989 | J51: 162429.4793 | K51: 280962.5196 | M51: 16464.59427 | N51: 43655.83127 | O51: 60166.19632 | P51: 109059.8429 | Q51: 214045.5341
A52: D41P_FISIM | B52: D41P_FISIM | C52: Adjustment for FISIM (negative sign) | D52: B | G52: -266914.9605 | I52: -266914.9605 | J52: 0 | K52: -266914.9605 | M52: -9911.424969 | N52: -26280.11896 | O52: -36219.09721 | P52: -65652.29804 | Q52: -128852.0213
A53: D45P | B53: D45P | C53: Rent paid | D53: B | G53: 20758.36225 | I53: =G53-H53 -> 20758.36225 | J53: 0 | K53: 20758.36225 | M53: 4793.309763 | N53: 4004.00404 | O53: 4599.787486 | P53: 3448.465354 | Q53: 3912.795604
A54: B5 | B54: B5g | C54: Balance of primary incomes | D54: Select a method | F54: =IF(OR(F7="",F27="",F31="",F7="NAV",F27="NAV",F31="NAV",F7="-",F27="-",F31="-",ISERROR(SUM(F7,F27,F31))),"-",SUM(F7,F27,F31)) -> - | G54: =IF(OR(G7="",G27="",G31="",G7="NAV",G27="NAV",G31="NAV",G7="-",G27="-",G31="-",ISERROR(SUM(G7,G27,G31))),"-",SUM(G7,G27,G31)) -> 19342433.38 | H54: - | I54: 19334027.85 | J54: 16643032.53 | K54: 2690995.325 | M54: =IF(OR(M7="",M27="",M31="",M7="NAV",M27="NAV",M31="NAV",M7="-",M27="-",M31="-",ISERROR(SUM(M7,M27,M31))),"-",SUM(M7,M27,M31)) -> 658529.5921 | N54: 1604259.107 | O54: 3001369.494 | P54: 4484252.154 | Q54: 9585617.505 | S54: =IF(OR(S7="",S27="",S31="",S7="NAV",S27="NAV",S31="NAV",S7="-",S27="-",S31="-",ISERROR(SUM(S7,S27,S31))),"-",SUM(S7,S27,S31)) -> - | T54: - | U54: - | V54: - | W54: - | X54: - | Y54: - | Z54: - | AA54: - | AB54: - | AD54: =IF(OR(AD7="",AD27="",AD31="",AD7="NAV",AD27="NAV",AD31="NAV",AD7="-",AD27="-",AD31="-",ISERROR(SUM(AD7,AD27,AD31))),"-",SUM(AD7,AD27,AD31)) -> - | AE54: - | AF54: - | AG54: - | AJ54: =IF(OR(AJ7="",AJ27="",AJ31="",AJ7="NAV",AJ27="NAV",AJ31="NAV",AJ7="-",AJ27="-",AJ31="-",ISERROR(SUM(AJ7,AJ27,AJ31))),"-",SUM(AJ7,AJ27,AJ31)) -> - | AK54: - | AL54: - | AM54: - | AN54: - | AO54: - | AP54: - | AQ54: - | AS54: =IF(OR(AS7="",AS27="",AS31="",AS7="NAV",AS27="NAV",AS31="NAV",AS7="-",AS27="-",AS31="-",ISERROR(SUM(AS7,AS27,AS31))),"-",SUM(AS7,AS27,AS31)) -> - | AT54: - | AU54: - | AV54: - | AW54: - | AX54: -
A55: D5P | B55: D5P | C55: Current taxes on income and wealth | D55: B | G55: 2042909.749 | H55: 575.720874 | I55: =G55-H55 -> 2042334.028 | J55: 2774313.951 | K55: -731979.923 | M55: 47020.68099 | N55: 145758.5479 | O55: 307491.7502 | P55: 495893.0749 | Q55: 1046169.974
A56: D61P | B56: D61P | C56: Net social contributions paid | D56: Select a method | F56: =IF(OR(F57="",F58="",F59="",F62="",F57="NAV",F58="NAV",F59="NAV",F62="NAV",F57="-",F58="-",F59="-",F62="-",ISERROR(SUM(F57,F58,F59,-(IF(F62="NAP",0,F62))))),"-",SUM(F57,F58,F59,-(IF(F62="NAP",0,F62)))) -> - | G56: =IF(OR(G57="",G58="",G59="",G62="",G57="NAV",G58="NAV",G59="NAV",G62="NAV",G57="-",G58="-",G59="-",G62="-",ISERROR(SUM(G57,G58,G59,-(IF(G62="NAP",0,G62))))),"-",SUM(G57,G58,G59,-(IF(G62="NAP",0,G62)))) -> 3787126.904 | H56: - | I56: 3784651.25 | J56: 2470292.158 | K56: 1314359.092 | M56: =IF(OR(M57="",M58="",M59="",M62="",M57="NAV",M58="NAV",M59="NAV",M62="NAV",M57="-",M58="-",M59="-",M62="-",ISERROR(SUM(M57,M58,M59,-(IF(M62="NAP",0,M62))))),"-",SUM(M57,M58,M59,-(IF(M62="NAP",0,M62)))) -> 93338.97303 | N56: 292912.1553 | O56: 615843.7707 | P56: 955628.5364 | Q56: 1826927.783 | S56: =IF(OR(S57="",S58="",S59="",S62="",S57="NAV",S58="NAV",S59="NAV",S62="NAV",S57="-",S58="-",S59="-",S62="-",ISERROR(SUM(S57,S58,S59,-(IF(S62="NAP",0,S62))))),"-",SUM(S57,S58,S59,-(IF(S62="NAP",0,S62)))) -> - | T56: - | U56: - | V56: - | W56: - | X56: - | Y56: - | Z56: - | AA56: - | AB56: - | AD56: =IF(OR(AD57="",AD58="",AD59="",AD62="",AD57="NAV",AD58="NAV",AD59="NAV",AD62="NAV",AD57="-",AD58="-",AD59="-",AD62="-",ISERROR(SUM(AD57,AD58,AD59,-(IF(AD62="NAP",0,AD62))))),"-",SUM(AD57,AD58,AD59,-(IF(AD62="NAP",0,AD62)))) -> - | AE56: - | AF56: - | AG56: - | AJ56: =IF(OR(AJ57="",AJ58="",AJ59="",AJ62="",AJ57="NAV",AJ58="NAV",AJ59="NAV",AJ62="NAV",AJ57="-",AJ58="-",AJ59="-",AJ62="-",ISERROR(SUM(AJ57,AJ58,AJ59,-(IF(AJ62="NAP",0,AJ62))))),"-",SUM(AJ57,AJ58,AJ59,-(IF(AJ62="NAP",0,AJ62)))) -> - | AK56: - | AL56: - | AM56: - | AN56: - | AO56: - | AP56: - | AQ56: - | AS56: =IF(OR(AS57="",AS58="",AS59="",AS62="",AS57="NAV",AS58="NAV",AS59="NAV",AS62="NAV",AS57="-",AS58="-",AS59="-",AS62="-",ISERROR(SUM(AS57,AS58,AS59,-(IF(AS62="NAP",0,AS62))))),"-",SUM(AS57,AS58,AS59,-(IF(AS62="NAP",0,AS62)))) -> - | AT56: - | AU56: - | AV56: - | AW56: - | AX56: -
A57: D611P | B57: D611P | C57: Employers' actual social contributions paid (see corresponding item above) | D57: A | G57: 2451676.765 | H57: 1605.063196 | I57: =G57-H57 -> 2450071.702 | J57: =J29 -> 2415881.27 | K57: 34190.43157 | M57: 63465.80545 | N57: 198259.284 | O57: 412737.6004 | P57: 628726.7298 | Q57: 1146882.251
A58: D612P | B58: D612P | C58: Employers' imputed social contributions paid (see corresponding item above) | D58: B | G58: 252423.1391 | H58: 137.6856888 | I58: 252285.4534 | J58: 0 | K58: =I58-J58 -> 252285.4534 | M58: 6952.634954 | N58: 20715.02767 | O58: 41913.62009 | P58: 64536.75668 | Q58: 118167.414
A59: D613P_D614P | B59: D613P+D614P | C59: Households' social contributions (actual and supplements) | D59: Select a method | F59: =IF(OR(F60="",F61="",F60="NAV",F61="NAV",ISERROR(SUM(F60,F61))),"-",SUM(F60,F61)) -> - | G59: =IF(OR(G60="",G61="",G60="NAV",G61="NAV",ISERROR(SUM(G60,G61))),"-",SUM(G60,G61)) -> 1106865 | H59: - | I59: 1106132.094 | J59: 54410.88759 | K59: 1051721.207 | M59: =IF(OR(M60="",M61="",M60="NAV",M61="NAV",ISERROR(SUM(M60,M61))),"-",SUM(M60,M61)) -> 23425.36737 | N59: 75566.35696 | O59: 164742.8865 | P59: 268143.7547 | Q59: 574253.7289 | S59: =IF(OR(S60="",S61="",S60="NAV",S61="NAV",ISERROR(SUM(S60,S61))),"-",SUM(S60,S61)) -> - | T59: - | U59: - | V59: - | W59: - | X59: - | Y59: - | Z59: - | AA59: - | AB59: - | AD59: =IF(OR(AD60="",AD61="",AD60="NAV",AD61="NAV",ISERROR(SUM(AD60,AD61))),"-",SUM(AD60,AD61)) -> - | AE59: - | AF59: - | AG59: - | AJ59: =IF(OR(AJ60="",AJ61="",AJ60="NAV",AJ61="NAV",ISERROR(SUM(AJ60,AJ61))),"-",SUM(AJ60,AJ61)) -> - | AK59: - | AL59: - | AM59: - | AN59: - | AO59: - | AP59: - | AQ59: - | AS59: =IF(OR(AS60="",AS61="",AS60="NAV",AS61="NAV",ISERROR(SUM(AS60,AS61))),"-",SUM(AS60,AS61)) -> - | AT59: - | AU59: - | AV59: - | AW59: - | AX59: -
A60: D613P | B60: D613P | C60: Households' actual social contributions | D60: A | G60: 1049256 | H60: 732.9055692 | I60: =G60-H60 -> 1048523.094 | J60: 54410.88759 | K60: 994112.2068 | M60: 22205.33949 | N60: 71630.74902 | O60: 156162.8327 | P60: 254178.4302 | Q60: 544345.743
A61: D614P | B61: D614P | C61: Households' social contributions supplements (see corresponding item D442R above) | D61: A | G61: 57609 | I61: 57609 | J61: 0 | K61: 57609 | M61: 1220.027875 | N61: 3935.607944 | O61: 8580.053863 | P61: 13965.32443 | Q61: 29907.98589
A62: D61x | B62: D61xP | C62: Social insurance scheme service charges | D62: A | G62: 23838 | I62: 23838 | J62: 0 | K62: 23838 | M62: 504.8347391 | N62: 1628.513291 | O62: 3550.336301 | P62: 5778.704782 | Q62: 12375.61089
A63: D61R | B63: D61R | C63: Net social contributions received | D63: Select a method | F63: =IF(OR(F64="",F65="",F64="NAV",F65="NAV",ISERROR(SUM(F64,F65))),"-",SUM(F64,F65)) -> - | G63: =IF(OR(G64="",G65="",G64="NAV",G65="NAV",ISERROR(SUM(G64,G65))),"-",SUM(G64,G65)) -> 451.5547317 | H63: - | I63: 451.5547317 | J63: 0 | K63: =I63-J63 -> 451.5547317 | M63: =IF(OR(M64="",M65="",M64="NAV",M65="NAV",ISERROR(SUM(M64,M65))),"-",SUM(M64,M65)) -> 52.90689697 | N63: 65.86370587 | O63: 83.43467071 | P63: 107.5439096 | Q63: 141.8055485 | S63: =IF(OR(S64="",S65="",S64="NAV",S65="NAV",ISERROR(SUM(S64,S65))),"-",SUM(S64,S65)) -> - | T63: - | U63: - | V63: - | W63: - | X63: - | Y63: - | Z63: - | AA63: - | AB63: - | AD63: =IF(OR(AD64="",AD65="",AD64="NAV",AD65="NAV",ISERROR(SUM(AD64,AD65))),"-",SUM(AD64,AD65)) -> - | AE63: - | AF63: - | AG63: - | AJ63: =IF(OR(AJ64="",AJ65="",AJ64="NAV",AJ65="NAV",ISERROR(SUM(AJ64,AJ65))),"-",SUM(AJ64,AJ65)) -> - | AK63: - | AL63: - | AM63: - | AN63: - | AO63: - | AP63: - | AQ63: - | AS63: =IF(OR(AS64="",AS65="",AS64="NAV",AS65="NAV",ISERROR(SUM(AS64,AS65))),"-",SUM(AS64,AS65)) -> - | AT63: - | AU63: - | AV63: - | AW63: - | AX63: -
A64: D611R | B64: D611R | C64: Employers' actual social contributions received | D64: Select a method | G64: 0 | I64: =G64-H64 -> 0 | J64: 0 | K64: =I64-J64 -> 0 | M64: 0 | N64: 0 | O64: 0 | P64: 0 | Q64: 0
A65: D612R | B65: D612R | C65: Employers' imputed social contributions received | D65: B | G65: 451.5547317 | I65: 451.5547317 | J65: 0 | K65: =I65-J65 -> 451.5547317 | M65: 52.90689697 | N65: 65.86370587 | O65: 83.43467071 | P65: 107.5439096 | Q65: 141.8055485
A66: D62P | B66: D62P | C66: Social benefits other than STiK paid | D66: B | G66: 451.5547317 | I66: =G66-H66 -> 451.5547317 | J66: 0 | K66: =I66-J66 -> 451.5547317 | M66: 52.90689697 | N66: 65.86370587 | O66: 83.43467071 | P66: 107.5439096 | Q66: 141.8055485
A67: D62R | B67: D62R | C67: Social benefits other than STiK received | D67: Select a method | F67: =IF(OR(F68="",F69="",F68="NAV",F69="NAV",ISERROR(SUM(F68,F69))),"-",SUM(F68,F69)) -> - | G67: =IF(OR(G68="",G69="",G68="NAV",G69="NAV",ISERROR(SUM(G68,G69))),"-",SUM(G68,G69)) -> 3487174.059 | H67: 3614.108984 | I67: 3483559.95 | J67: 3187309.74 | K67: 296250.2098 | M67: =IF(OR(M68="",M69="",M68="NAV",M69="NAV",ISERROR(SUM(M68,M69))),"-",SUM(M68,M69)) -> 571320.3242 | N67: 727763.595 | O67: 677941.6522 | P67: 681559.5353 | Q67: 824974.8429 | S67: =IF(OR(S68="",S69="",S68="NAV",S69="NAV",ISERROR(SUM(S68,S69))),"-",SUM(S68,S69)) -> - | T67: - | U67: - | V67: - | W67: - | X67: - | Y67: - | Z67: - | AA67: - | AB67: - | AD67: =IF(OR(AD68="",AD69="",AD68="NAV",AD69="NAV",ISERROR(SUM(AD68,AD69))),"-",SUM(AD68,AD69)) -> - | AE67: - | AF67: - | AG67: - | AJ67: =IF(OR(AJ68="",AJ69="",AJ68="NAV",AJ69="NAV",ISERROR(SUM(AJ68,AJ69))),"-",SUM(AJ68,AJ69)) -> - | AK67: - | AL67: - | AM67: - | AN67: - | AO67: - | AP67: - | AQ67: - | AS67: =IF(OR(AS68="",AS69="",AS68="NAV",AS69="NAV",ISERROR(SUM(AS68,AS69))),"-",SUM(AS68,AS69)) -> - | AT67: - | AU67: - | AV67: - | AW67: - | AX67: -
A68: D6211R+D6221R | B68: D6211R+D6221R | C68: Pension benefits | D68: A | G68: 2371972.773 | H68: 2436.277848 | I68: =G68-H68 -> 2369536.496 | J68: 2285884.85 | K68: 83651.64563 | M68: 474314.382 | N68: 561560.6586 | O68: 459735.8967 | P68: 408979.6242 | Q68: 464945.934
A69: D6212R+D6222R | B69: D6212R+D6222R | C69: Non-pension benefits | D69: A | G69: 1115201.285 | H69: 1177.831136 | I69: =G69-H69 -> 1114023.454 | J69: 901424.8899 | K69: 212598.5642 | M69: 97005.94217 | N69: 166202.9364 | O69: 218205.7555 | P69: 272579.9111 | Q69: 360028.9089
A70: D7N | B70: D7N | C70: Other current transfers (net) | D70: Select a method | F70: =IF(OR(F71="",F74="",F71="NAV",F74="NAV",F71="-",F74="-",ISERROR(SUM(F71,F74))),"-",SUM(F71,F74)) -> - | G70: =IF(OR(G71="",G74="",G71="NAV",G74="NAV",G71="-",G74="-",ISERROR(SUM(G71,G74))),"-",SUM(G71,G74)) -> 539840.1763 | H70: - | I70: 535849.4714 | J70: -98160.36831 | K70: =I70-J70 -> 634009.8397 | M70: =IF(OR(M71="",M74="",M71="NAV",M74="NAV",M71="-",M74="-",ISERROR(SUM(M71,M74))),"-",SUM(M71,M74)) -> -21935.77155 | N70: 82776.01713 | O70: 127257.1937 | P70: 168878.7157 | Q70: 178873.3164 | S70: =IF(OR(S71="",S74="",S71="NAV",S74="NAV",S71="-",S74="-",ISERROR(SUM(S71,S74))),"-",SUM(S71,S74)) -> - | T70: - | U70: - | V70: - | W70: - | X70: - | Y70: - | Z70: - | AA70: - | AB70: - | AD70: =IF(OR(AD71="",AD74="",AD71="NAV",AD74="NAV",AD71="-",AD74="-",ISERROR(SUM(AD71,AD74))),"-",SUM(AD71,AD74)) -> - | AE70: - | AF70: - | AG70: - | AJ70: =IF(OR(AJ71="",AJ74="",AJ71="NAV",AJ74="NAV",AJ71="-",AJ74="-",ISERROR(SUM(AJ71,AJ74))),"-",SUM(AJ71,AJ74)) -> - | AK70: - | AL70: - | AM70: - | AN70: - | AO70: - | AP70: - | AQ70: - | AS70: =IF(OR(AS71="",AS74="",AS71="NAV",AS74="NAV",AS71="-",AS74="-",ISERROR(SUM(AS71,AS74))),"-",SUM(AS71,AS74)) -> - | AT70: - | AU70: - | AV70: - | AW70: - | AX70: -
A71: D72R_D71P | B71: D72R-D71P | C71: Net non-life insurance claims minus premiums | D71: Select a method | F71: =IF(OR(F72="",F73="",F72="NAV",F73="NAV",ISERROR(SUM(-(IF(F72="NAP",0,F72)),F73))),"-",SUM(-(IF(F72="NAP",0,F72)),F73)) -> - | G71: =IF(OR(G72="",G73="",G72="NAV",G73="NAV",ISERROR(SUM(-(IF(G72="NAP",0,G72)),G73))),"-",SUM(-(IF(G72="NAP",0,G72)),G73)) -> -4020.449988 | H71: - | I71: -4020.449988 | J71: -174498.117 | K71: =I71-J71 -> 170477.667 | M71: =IF(OR(M72="",M73="",M72="NAV",M73="NAV",ISERROR(SUM(-(IF(M72="NAP",0,M72)),M73))),"-",SUM(-(IF(M72="NAP",0,M72)),M73)) -> -181.8277154 | N71: -465.4389483 | O71: -746.6657362 | P71: -1113.117685 | Q71: -1513.399902 | S71: =IF(OR(S72="",S73="",S72="NAV",S73="NAV",ISERROR(SUM(-(IF(S72="NAP",0,S72)),S73))),"-",SUM(-(IF(S72="NAP",0,S72)),S73)) -> - | T71: - | U71: - | V71: - | W71: - | X71: - | Y71: - | Z71: - | AA71: - | AB71: - | AD71: =IF(OR(AD72="",AD73="",AD72="NAV",AD73="NAV",ISERROR(SUM(-(IF(AD72="NAP",0,AD72)),AD73))),"-",SUM(-(IF(AD72="NAP",0,AD72)),AD73)) -> - | AE71: - | AF71: - | AG71: - | AJ71: =IF(OR(AJ72="",AJ73="",AJ72="NAV",AJ73="NAV",ISERROR(SUM(-(IF(AJ72="NAP",0,AJ72)),AJ73))),"-",SUM(-(IF(AJ72="NAP",0,AJ72)),AJ73)) -> - | AK71: - | AL71: - | AM71: - | AN71: - | AO71: - | AP71: - | AQ71: - | AS71: =IF(OR(AS72="",AS73="",AS72="NAV",AS73="NAV",ISERROR(SUM(-(IF(AS72="NAP",0,AS72)),AS73))),"-",SUM(-(IF(AS72="NAP",0,AS72)),AS73)) -> - | AT71: - | AU71: - | AV71: - | AW71: - | AX71: -
A72: D71P | B72: D71P | C72: Non-life insurance premiums (including D441AR (see above)) | D72: A | G72: 100554.0646 | I72: =G72-H72 -> 100554.0646 | J72: 174498.117 | K72: -73944.05248 | M72: 4547.629218 | N72: 11640.9303 | O72: 18674.59485 | P72: 27839.79602 | Q72: 37851.11417
A73: D72R | B73: D72R | C73: Non-life insurance claims | D73: B | G73: 96533.61457 | I73: 96533.61457 | J73: 0 | K73: 96533.61457 | M73: 4365.801503 | N73: 11175.49135 | O73: 17927.92912 | P73: 26726.67834 | Q73: 36337.71426
A74: D75N | B74: D75N | C74: Net miscellaneous current transfers received | D74: Select a method | F74: =IF(OR(F75="",F76="",F75="NAV",F76="NAV",ISERROR(SUM(F75,-(IF(F76="NAP",0,F76))))),"-",SUM(F75,-(IF(F76="NAP",0,F76)))) -> - | G74: =IF(OR(G75="",G76="",G75="NAV",G76="NAV",ISERROR(SUM(G75,-(IF(G76="NAP",0,G76))))),"-",SUM(G75,-(IF(G76="NAP",0,G76)))) -> 543860.6263 | H74: 3990.704871 | I74: 539869.9214 | J74: 76337.74872 | K74: =I74-J74 -> 463532.1727 | M74: =IF(OR(M75="",M76="",M75="NAV",M76="NAV",ISERROR(SUM(M75,-(IF(M76="NAP",0,M76))))),"-",SUM(M75,-(IF(M76="NAP",0,M76)))) -> -21753.94383 | N74: 83241.45608 | O74: 128003.8594 | P74: 169991.8334 | Q74: 180386.7163 | S74: =IF(OR(S75="",S76="",S75="NAV",S76="NAV",ISERROR(SUM(S75,-(IF(S76="NAP",0,S76))))),"-",SUM(S75,-(IF(S76="NAP",0,S76)))) -> - | T74: - | U74: - | V74: - | W74: - | X74: - | Y74: - | Z74: - | AA74: - | AB74: - | AD74: =IF(OR(AD75="",AD76="",AD75="NAV",AD76="NAV",ISERROR(SUM(AD75,-(IF(AD76="NAP",0,AD76))))),"-",SUM(AD75,-(IF(AD76="NAP",0,AD76)))) -> - | AE74: - | AF74: - | AG74: - | AJ74: =IF(OR(AJ75="",AJ76="",AJ75="NAV",AJ76="NAV",ISERROR(SUM(AJ75,-(IF(AJ76="NAP",0,AJ76))))),"-",SUM(AJ75,-(IF(AJ76="NAP",0,AJ76)))) -> - | AK74: - | AL74: - | AM74: - | AN74: - | AO74: - | AP74: - | AQ74: - | AS74: =IF(OR(AS75="",AS76="",AS75="NAV",AS76="NAV",ISERROR(SUM(AS75,-(IF(AS76="NAP",0,AS76))))),"-",SUM(AS75,-(IF(AS76="NAP",0,AS76)))) -> - | AT74: - | AU74: - | AV74: - | AW74: - | AX74: -
A75: D75R | B75: D75R | C75: Miscellaneous current transfers received | D75: A | G75: 811209.2512 | H75: 3990.704871 | I75: =G75-H75 -> 807218.5463 | J75: 184338.0955 | K75: 622880.4508 | M75: 40334.88923 | N75: 115016.4567 | O75: 177080.2935 | P75: 206142.4051 | Q75: 268644.5018
A76: D75P | B76: D75P | C76: Miscellaneous current transfers paid | D76: Mixed | G76: 267348.6249 | H76: 0 | I76: 267348.6249 | J76: 108000.3468 | K76: 159348.2781 | M76: 62088.83306 | N76: 31775.00066 | O76: 49076.43409 | P76: 36150.57167 | Q76: 88257.78541
C77: A -- components which are a true match | I77: 0 | J77: 0 | K77: 0
C78: B -- components which are proxies | I78: 0 | J78: 0 | K78: 0
C79: C -- components which are derived from auxiliary info | I79: 0 | J79: 0 | K79: 0
C80: D -- components which have no info | I80: 0 | J80: 0 | K80: 0
A81: D75X | B81: D75x | C81: of which transfers between resident households (2008 SNA 8.133) | D81: Select a method | I81: 0 | J81: 0 | K81: 0
A82: B6 | B82: B6g | C82: Disposable income | F82: =IF(OR(F54="",F55="",F56="",F63="",F66="",F67="",F70="",F54="NAV",F55="NAV",F56="NAV",F63="NAV",F66="NAV",F67="NAV",F70="NAV",F54="-",F55="",F56="-",F63="-",F66="-",F67="-",F70="-",ISERROR(SUM(F54,-(IF(F55="NAP",0,F55)),-(IF(F56="NAP",0,F56)),F63,-(IF(F66="NAP",0,F66)),F67,F70))),"-",SUM(F54,-(IF(F55="NAP",0,F55)),-(IF(F56="NAP",0,F56)),F63,-(IF(F66="NAP",0,F66)),F67,F70)) -> - | G82: =IF(OR(G54="",G55="",G56="",G63="",G66="",G67="",G70="",G54="NAV",G55="NAV",G56="NAV",G63="NAV",G66="NAV",G67="NAV",G70="NAV",G54="-",G55="",G56="-",G63="-",G66="-",G67="-",G70="-",ISERROR(SUM(G54,-(IF(G55="NAP",0,G55)),-(IF(G56="NAP",0,G56)),G63,-(IF(G66="NAP",0,G66)),G67,G70))),"-",SUM(G54,-(IF(G55="NAP",0,G55)),-(IF(G56="NAP",0,G56)),G63,-(IF(G66="NAP",0,G66)),G67,G70)) -> 17539410.96 | H82: - | I82: 17526452 | J82: 14487575.79 | K82: =I82-J82 -> 3038876.206 | M82: =IF(OR(M54="",M55="",M56="",M63="",M66="",M67="",M70="",M54="NAV",M55="NAV",M56="NAV",M63="NAV",M66="NAV",M67="NAV",M70="NAV",M54="-",M55="",M56="-",M63="-",M66="-",M67="-",M70="-",ISERROR(SUM(M54,-(IF(M55="NAP",0,M55)),-(IF(M56="NAP",0,M56)),M63,-(IF(M66="NAP",0,M66)),M67,M70))),"-",SUM(M54,-(IF(M55="NAP",0,M55)),-(IF(M56="NAP",0,M56)),M63,-(IF(M66="NAP",0,M66)),M67,M70)) -> 1067554.491 | N82: 1976128.016 | O82: 2883232.819 | P82: 3883168.794 | Q82: 7716367.908 | S82: =IF(OR(S54="",S55="",S56="",S63="",S66="",S67="",S70="",S54="NAV",S55="NAV",S56="NAV",S63="NAV",S66="NAV",S67="NAV",S70="NAV",S54="-",S55="",S56="-",S63="-",S66="-",S67="-",S70="-",ISERROR(SUM(S54,-(IF(S55="NAP",0,S55)),-(IF(S56="NAP",0,S56)),S63,-(IF(S66="NAP",0,S66)),S67,S70))),"-",SUM(S54,-(IF(S55="NAP",0,S55)),-(IF(S56="NAP",0,S56)),S63,-(IF(S66="NAP",0,S66)),S67,S70)) -> - | T82: - | U82: - | V82: - | W82: - | X82: - | Y82: - | Z82: - | AA82: - | AB82: - | AD82: =IF(OR(AD54="",AD55="",AD56="",AD63="",AD66="",AD67="",AD70="",AD54="NAV",AD55="NAV",AD56="NAV",AD63="NAV",AD66="NAV",AD67="NAV",AD70="NAV",AD54="-",AD55="",AD56="-",AD63="-",AD66="-",AD67="-",AD70="-",ISERROR(SUM(AD54,-(IF(AD55="NAP",0,AD55)),-(IF(AD56="NAP",0,AD56)),AD63,-(IF(AD66="NAP",0,AD66)),AD67,AD70))),"-",SUM(AD54,-(IF(AD55="NAP",0,AD55)),-(IF(AD56="NAP",0,AD56)),AD63,-(IF(AD66="NAP",0,AD66)),AD67,AD70)) -> - | AE82: - | AF82: - | AG82: - | AJ82: =IF(OR(AJ54="",AJ55="",AJ56="",AJ63="",AJ66="",AJ67="",AJ70="",AJ54="NAV",AJ55="NAV",AJ56="NAV",AJ63="NAV",AJ66="NAV",AJ67="NAV",AJ70="NAV",AJ54="-",AJ55="",AJ56="-",AJ63="-",AJ66="-",AJ67="-",AJ70="-",ISERROR(SUM(AJ54,-(IF(AJ55="NAP",0,AJ55)),-(IF(AJ56="NAP",0,AJ56)),AJ63,-(IF(AJ66="NAP",0,AJ66)),AJ67,AJ70))),"-",SUM(AJ54,-(IF(AJ55="NAP",0,AJ55)),-(IF(AJ56="NAP",0,AJ56)),AJ63,-(IF(AJ66="NAP",0,AJ66)),AJ67,AJ70)) -> - | AK82: - | AL82: - | AM82: - | AN82: - | AO82: - | AP82: - | AQ82: - | AS82: =IF(OR(AS54="",AS55="",AS56="",AS63="",AS66="",AS67="",AS70="",AS54="NAV",AS55="NAV",AS56="NAV",AS63="NAV",AS66="NAV",AS67="NAV",AS70="NAV",AS54="-",AS55="",AS56="-",AS63="-",AS66="-",AS67="-",AS70="-",ISERROR(SUM(AS54,-(IF(AS55="NAP",0,AS55)),-(IF(AS56="NAP",0,AS56)),AS63,-(IF(AS66="NAP",0,AS66)),AS67,AS70))),"-",SUM(AS54,-(IF(AS55="NAP",0,AS55)),-(IF(AS56="NAP",0,AS56)),AS63,-(IF(AS66="NAP",0,AS66)),AS67,AS70)) -> - | AT82: - | AU82: - | AV82: - | AW82: - | AX82: -
A83: D63R | B83: D63R | C83: STiK | D83: Select a method | F83: =IF(OR(F84="",F85="",F86="",F84="NAV",F85="NAV",F86="NAV",ISERROR(SUM(F84,F85,F86))),"-",SUM(F84,F85,F86)) -> - | G83: =IF(OR(G84="",G85="",G86="",G84="NAV",G85="NAV",G86="NAV",ISERROR(SUM(G84,G85,G86))),"-",SUM(G84,G85,G86)) -> 3076502.136 | H83: 27662.12679 | I83: 3048840.009 | J83: 0 | K83: =I83-J83 -> 3048840.009 | M83: =IF(OR(M84="",M85="",M86="",M84="NAV",M85="NAV",M86="NAV",ISERROR(SUM(M84,M85,M86))),"-",SUM(M84,M85,M86)) -> 396195.0115 | N83: 519922.719 | O83: 635672.2047 | P83: 684276.3068 | Q83: 812773.7673 | S83: =IF(OR(S84="",S85="",S86="",S84="NAV",S85="NAV",S86="NAV",ISERROR(SUM(S84,S85,S86))),"-",SUM(S84,S85,S86)) -> - | T83: - | U83: - | V83: - | W83: - | X83: - | Y83: - | Z83: - | AA83: - | AB83: - | AD83: =IF(OR(AD84="",AD85="",AD86="",AD84="NAV",AD85="NAV",AD86="NAV",ISERROR(SUM(AD84,AD85,AD86))),"-",SUM(AD84,AD85,AD86)) -> - | AE83: - | AF83: - | AG83: - | AJ83: =IF(OR(AJ84="",AJ85="",AJ86="",AJ84="NAV",AJ85="NAV",AJ86="NAV",ISERROR(SUM(AJ84,AJ85,AJ86))),"-",SUM(AJ84,AJ85,AJ86)) -> - | AK83: - | AL83: - | AM83: - | AN83: - | AO83: - | AP83: - | AQ83: - | AS83: =IF(OR(AS84="",AS85="",AS86="",AS84="NAV",AS85="NAV",AS86="NAV",ISERROR(SUM(AS84,AS85,AS86))),"-",SUM(AS84,AS85,AS86)) -> - | AT83: - | AU83: - | AV83: - | AW83: - | AX83: -
A84: D63R1 | B84: D63R1 | C84: Education | D84: C | G84: 1225045.536 | H84: 4972.785459 | I84: =G84-H84 -> 1220072.751 | J84: 0 | K84: =I84-J84 -> 1220072.751 | M84: 145884.3324 | N84: 211012.5368 | O84: 289634.6304 | P84: 301854.9883 | Q84: 271686.2628
A85: D63R2 | B85: D63R2 | C85: Health | D85: C | G85: 1007086.997 | H85: 13510.85819 | I85: 993576.1384 | J85: 0 | K85: =I85-J85 -> 993576.1384 | M85: 199438.3161 | N85: 214741.4042 | O85: 208642.3705 | P85: 197375.9887 | Q85: 173378.0589
A86: D63R3 | B86: D63R3 | C86: Other | D86: D | G86: 844369.6034 | H86: 9178.483146 | I86: 835191.1203 | J86: 0 | K86: 835191.1203 | M86: 50872.36308 | N86: 94168.77806 | O86: 137395.2038 | P86: 185045.3298 | Q86: 367709.4455
A87: B7 | B87: B7g | C87: Adjusted disposable income | F87: =IF(OR(F82="",F83="",F82="NAV",F83="NAV",F82="-",F83="-",ISERROR(SUM(F82,F83))),"-",SUM(F82,F83)) -> - | G87: =IF(OR(G82="",G83="",G82="NAV",G83="NAV",G82="-",G83="-",ISERROR(SUM(G82,G83))),"-",SUM(G82,G83)) -> 20615913.1 | H87: - | I87: 20575292 | J87: 14487575.79 | K87: =I87-J87 -> 6087716.216 | M87: =IF(OR(M82="",M83="",M82="NAV",M83="NAV",M82="-",M83="-",ISERROR(SUM(M82,M83))),"-",SUM(M82,M83)) -> 1463749.502 | N87: 2496050.735 | O87: 3518905.024 | P87: 4567445.1 | Q87: 8529141.675 | S87: =IF(OR(S82="",S83="",S82="NAV",S83="NAV",S82="-",S83="-",ISERROR(SUM(S82,S83))),"-",SUM(S82,S83)) -> - | T87: - | U87: - | V87: - | W87: - | X87: - | Y87: - | Z87: - | AA87: - | AB87: - | AD87: =IF(OR(AD82="",AD83="",AD82="NAV",AD83="NAV",AD82="-",AD83="-",ISERROR(SUM(AD82,AD83))),"-",SUM(AD82,AD83)) -> - | AE87: - | AF87: - | AG87: - | AJ87: =IF(OR(AJ82="",AJ83="",AJ82="NAV",AJ83="NAV",AJ82="-",AJ83="-",ISERROR(SUM(AJ82,AJ83))),"-",SUM(AJ82,AJ83)) -> - | AK87: - | AL87: - | AM87: - | AN87: - | AO87: - | AP87: - | AQ87: - | AS87: =IF(OR(AS82="",AS83="",AS82="NAV",AS83="NAV",AS82="-",AS83="-",ISERROR(SUM(AS82,AS83))),"-",SUM(AS82,AS83)) -> - | AT87: - | AU87: - | AV87: - | AW87: - | AX87: -
B90: Memorandum items
A91: P51c | B91: P51c | C91: Consumption of fixed capital | D91: Select a method | F91: =IF(OR(F92="",F93="",F92="NAV",F93="NAV",F92="-",F93="-",ISERROR(SUM(F92,F93))),"-",SUM(F92,F93)) -> - | G91: =IF(OR(G92="",G93="",G92="NAV",G93="NAV",G92="-",G93="-",ISERROR(SUM(G92,G93))),"-",SUM(G92,G93)) -> - | H91: - | I91: - | J91: - | M91: =IF(OR(M92="",M93="",M92="NAV",M93="NAV",M92="-",M93="-",ISERROR(SUM(M92,M93))),"-",SUM(M92,M93)) -> - | N91: - | O91: - | P91: - | Q91: - | S91: =IF(OR(S92="",S93="",S92="NAV",S93="NAV",S92="-",S93="-",ISERROR(SUM(S92,S93))),"-",SUM(S92,S93)) -> - | T91: - | U91: - | V91: - | W91: - | X91: - | Y91: - | Z91: - | AA91: - | AB91: - | AD91: =IF(OR(AD92="",AD93="",AD92="NAV",AD93="NAV",AD92="-",AD93="-",ISERROR(SUM(AD92,AD93))),"-",SUM(AD92,AD93)) -> - | AE91: - | AF91: - | AG91: - | AJ91: =IF(OR(AJ92="",AJ93="",AJ92="NAV",AJ93="NAV",AJ92="-",AJ93="-",ISERROR(SUM(AJ92,AJ93))),"-",SUM(AJ92,AJ93)) -> - | AK91: - | AL91: - | AM91: - | AN91: - | AO91: - | AP91: - | AQ91: - | AS91: =IF(OR(AS92="",AS93="",AS92="NAV",AS93="NAV",AS92="-",AS93="-",ISERROR(SUM(AS92,AS93))),"-",SUM(AS92,AS93)) -> - | AT91: - | AU91: - | AV91: - | AW91: - | AX91: -
A92: P51cB2’ | B92: P51cB2’ | C92: concerning: gross operating surplus | D92: Select a method
A93: P51cB3 | B93: P51cB3 | C93: concerning: gross mixed income | D93: Select a method
A94: B2Rn+B3Rn | B94: B2Rn+B3Rn | C94: Net operating surplus and mixed income | F94: =IF(OR(F7="",F91="",F7="NAV",F91="NAV",F91="-",ISERROR(SUM(F7,F91))),"-",F7-F91) -> - | G94: =IF(OR(G7="",G91="",G7="NAV",G91="NAV",G91="-",ISERROR(SUM(G7,G91))),"-",G7-G91) -> - | H94: - | I94: - | J94: - | K94: =IF(OR(K7="",K91="",K7="NAV",K91="NAV",K91="-",ISERROR(SUM(K7,K91))),"-",K7-K91) -> - | M94: =IF(OR(M7="",M91="",M7="NAV",M91="NAV",M91="-",ISERROR(SUM(M7,M91))),"-",M7-M91) -> - | N94: - | O94: - | P94: - | Q94: - | S94: =IF(OR(S7="",S91="",S7="NAV",S91="NAV",S91="-",ISERROR(SUM(S7,S91))),"-",S7-S91) -> - | T94: - | U94: - | V94: - | W94: - | X94: - | Y94: - | Z94: - | AA94: - | AB94: - | AD94: =IF(OR(AD7="",AD91="",AD7="NAV",AD91="NAV",AD91="-",ISERROR(SUM(AD7,AD91))),"-",AD7-AD91) -> - | AE94: - | AF94: - | AG94: - | AJ94: =IF(OR(AJ7="",AJ91="",AJ7="NAV",AJ91="NAV",AJ91="-",ISERROR(SUM(AJ7,AJ91))),"-",AJ7-AJ91) -> - | AK94: - | AL94: - | AM94: - | AN94: - | AO94: - | AP94: - | AQ94: - | AS94: =IF(OR(AS7="",AS91="",AS7="NAV",AS91="NAV",AS91="-",ISERROR(SUM(AS7,AS91))),"-",AS7-AS91) -> - | AT94: - | AU94: - | AV94: - | AW94: - | AX94: -
A95: B2Rn | B95: B2Rn | C95: of which: net operating surplus | F95: =IF(OR(F8="",F92="",F8="NAV",F92="NAV",ISERROR(SUM(F8,F92))),"-",F8-F92) -> - | G95: =IF(OR(G8="",G92="",G8="NAV",G92="NAV",ISERROR(SUM(G8,G92))),"-",G8-G92) -> - | H95: - | I95: - | J95: - | M95: =IF(OR(M8="",M92="",M8="NAV",M92="NAV",ISERROR(SUM(M8,M92))),"-",M8-M92) -> - | N95: - | O95: - | P95: - | Q95: - | S95: =IF(OR(S8="",S92="",S8="NAV",S92="NAV",ISERROR(SUM(S8,S92))),"-",S8-S92) -> - | T95: - | U95: - | V95: - | W95: - | X95: - | Y95: - | Z95: - | AA95: - | AB95: - | AD95: =IF(OR(AD8="",AD92="",AD8="NAV",AD92="NAV",ISERROR(SUM(AD8,AD92))),"-",AD8-AD92) -> - | AE95: - | AF95: - | AG95: - | AJ95: =IF(OR(AJ8="",AJ92="",AJ8="NAV",AJ92="NAV",ISERROR(SUM(AJ8,AJ92))),"-",AJ8-AJ92) -> - | AK95: - | AL95: - | AM95: - | AN95: - | AO95: - | AP95: - | AQ95: - | AS95: =IF(OR(AS8="",AS92="",AS8="NAV",AS92="NAV",ISERROR(SUM(AS8,AS92))),"-",AS8-AS92) -> - | AT95: - | AU95: - | AV95: - | AW95: - | AX95: -
A96: B3Rn | B96: B3Rn | C96: of which: net mixed income | F96: =IF(OR(F11="",F93="",F11="NAV",F93="NAV",ISERROR(SUM(F11,F93))),"-",F11-F93) -> - | G96: =IF(OR(G11="",G93="",G11="NAV",G93="NAV",ISERROR(SUM(G11,G93))),"-",G11-G93) -> - | H96: - | I96: - | J96: - | M96: =IF(OR(M11="",M93="",M11="NAV",M93="NAV",ISERROR(SUM(M11,M93))),"-",M11-M93) -> - | N96: - | O96: - | P96: - | Q96: - | S96: =IF(OR(S11="",S93="",S11="NAV",S93="NAV",ISERROR(SUM(S11,S93))),"-",S11-S93) -> - | T96: - | U96: - | V96: - | W96: - | X96: - | Y96: - | Z96: - | AA96: - | AB96: - | AD96: =IF(OR(AD11="",AD93="",AD11="NAV",AD93="NAV",ISERROR(SUM(AD11,AD93))),"-",AD11-AD93) -> - | AE96: - | AF96: - | AG96: - | AJ96: =IF(OR(AJ11="",AJ93="",AJ11="NAV",AJ93="NAV",ISERROR(SUM(AJ11,AJ93))),"-",AJ11-AJ93) -> - | AK96: - | AL96: - | AM96: - | AN96: - | AO96: - | AP96: - | AQ96: - | AS96: =IF(OR(AS11="",AS93="",AS11="NAV",AS93="NAV",ISERROR(SUM(AS11,AS93))),"-",AS11-AS93) -> - | AT96: - | AU96: - | AV96: - | AW96: - | AX96: -
A97: B5N | B97: B5n | C97: Net balance of primary incomes | F97: =IF(OR(F94="",F27="",F31="",F94="NAV",F27="NAV",F31="NAV",F94="-",F27="-",F31="-",ISERROR(SUM(F94,F27,F31))),"-",SUM(F94,F27,F31)) -> - | G97: =IF(OR(G94="",G27="",G31="",G94="NAV",G27="NAV",G31="NAV",G94="-",G27="-",G31="-",ISERROR(SUM(G94,G27,G31))),"-",SUM(G94,G27,G31)) -> - | H97: - | I97: - | J97: - | M97: =IF(OR(M94="",M27="",M31="",M94="NAV",M27="NAV",M31="NAV",M94="-",M27="-",M31="-",ISERROR(SUM(M94,M27,M31))),"-",SUM(M94,M27,M31)) -> - | N97: - | O97: - | P97: - | Q97: - | S97: =IF(OR(S94="",S27="",S31="",S94="NAV",S27="NAV",S31="NAV",S94="-",S27="-",S31="-",ISERROR(SUM(S94,S27,S31))),"-",SUM(S94,S27,S31)) -> - | T97: - | U97: - | V97: - | W97: - | X97: - | Y97: - | Z97: - | AA97: - | AB97: - | AD97: =IF(OR(AD94="",AD27="",AD31="",AD94="NAV",AD27="NAV",AD31="NAV",AD94="-",AD27="-",AD31="-",ISERROR(SUM(AD94,AD27,AD31))),"-",SUM(AD94,AD27,AD31)) -> - | AE97: - | AF97: - | AG97: - | AJ97: =IF(OR(AJ94="",AJ27="",AJ31="",AJ94="NAV",AJ27="NAV",AJ31="NAV",AJ94="-",AJ27="-",AJ31="-",ISERROR(SUM(AJ94,AJ27,AJ31))),"-",SUM(AJ94,AJ27,AJ31)) -> - | AK97: - | AL97: - | AM97: - | AN97: - | AO97: - | AP97: - | AQ97: - | AS97: =IF(OR(AS94="",AS27="",AS31="",AS94="NAV",AS27="NAV",AS31="NAV",AS94="-",AS27="-",AS31="-",ISERROR(SUM(AS94,AS27,AS31))),"-",SUM(AS94,AS27,AS31)) -> - | AT97: - | AU97: - | AV97: - | AW97: - | AX97: -
A98: B6N | B98: B6n | C98: Net disposable income | F98: =IF(OR(F97="",F55="",F56="",F63="",F66="",F67="",F70="",F97="NAV",F55="NAV",F56="NAV",F63="NAV",F66="NAV",F67="NAV",F70="NAV",F97="-",F55="",F56="-",F63="-",F66="-",F67="-",F70="-",ISERROR(SUM(F97,-(IF(F55="NAP",0,F55)),-(IF(F56="NAP",0,F56)),F63,-(IF(F66="NAP",0,F66)),F67,F70))),"-",SUM(F97,-(IF(F55="NAP",0,F55)),-(IF(F56="NAP",0,F56)),F63,-(IF(F66="NAP",0,F66)),F67,F70)) -> - | G98: =IF(OR(G97="",G55="",G56="",G63="",G66="",G67="",G70="",G97="NAV",G55="NAV",G56="NAV",G63="NAV",G66="NAV",G67="NAV",G70="NAV",G97="-",G55="",G56="-",G63="-",G66="-",G67="-",G70="-",ISERROR(SUM(G97,-(IF(G55="NAP",0,G55)),-(IF(G56="NAP",0,G56)),G63,-(IF(G66="NAP",0,G66)),G67,G70))),"-",SUM(G97,-(IF(G55="NAP",0,G55)),-(IF(G56="NAP",0,G56)),G63,-(IF(G66="NAP",0,G66)),G67,G70)) -> - | H98: - | I98: - | J98: - | M98: =IF(OR(M97="",M55="",M56="",M63="",M66="",M67="",M70="",M97="NAV",M55="NAV",M56="NAV",M63="NAV",M66="NAV",M67="NAV",M70="NAV",M97="-",M55="",M56="-",M63="-",M66="-",M67="-",M70="-",ISERROR(SUM(M97,-(IF(M55="NAP",0,M55)),-(IF(M56="NAP",0,M56)),M63,-(IF(M66="NAP",0,M66)),M67,M70))),"-",SUM(M97,-(IF(M55="NAP",0,M55)),-(IF(M56="NAP",0,M56)),M63,-(IF(M66="NAP",0,M66)),M67,M70)) -> - | N98: - | O98: - | P98: - | Q98: - | S98: =IF(OR(S97="",S55="",S56="",S63="",S66="",S67="",S70="",S97="NAV",S55="NAV",S56="NAV",S63="NAV",S66="NAV",S67="NAV",S70="NAV",S97="-",S55="",S56="-",S63="-",S66="-",S67="-",S70="-",ISERROR(SUM(S97,-(IF(S55="NAP",0,S55)),-(IF(S56="NAP",0,S56)),S63,-(IF(S66="NAP",0,S66)),S67,S70))),"-",SUM(S97,-(IF(S55="NAP",0,S55)),-(IF(S56="NAP",0,S56)),S63,-(IF(S66="NAP",0,S66)),S67,S70)) -> - | T98: - | U98: - | V98: - | W98: - | X98: - | Y98: - | Z98: - | AA98: - | AB98: - | AD98: =IF(OR(AD97="",AD55="",AD56="",AD63="",AD66="",AD67="",AD70="",AD97="NAV",AD55="NAV",AD56="NAV",AD63="NAV",AD66="NAV",AD67="NAV",AD70="NAV",AD97="-",AD55="",AD56="-",AD63="-",AD66="-",AD67="-",AD70="-",ISERROR(SUM(AD97,-(IF(AD55="NAP",0,AD55)),-(IF(AD56="NAP",0,AD56)),AD63,-(IF(AD66="NAP",0,AD66)),AD67,AD70))),"-",SUM(AD97,-(IF(AD55="NAP",0,AD55)),-(IF(AD56="NAP",0,AD56)),AD63,-(IF(AD66="NAP",0,AD66)),AD67,AD70)) -> - | AE98: - | AF98: - | AG98: - | AJ98: =IF(OR(AJ97="",AJ55="",AJ56="",AJ63="",AJ66="",AJ67="",AJ70="",AJ97="NAV",AJ55="NAV",AJ56="NAV",AJ63="NAV",AJ66="NAV",AJ67="NAV",AJ70="NAV",AJ97="-",AJ55="",AJ56="-",AJ63="-",AJ66="-",AJ67="-",AJ70="-",ISERROR(SUM(AJ97,-(IF(AJ55="NAP",0,AJ55)),-(IF(AJ56="NAP",0,AJ56)),AJ63,-(IF(AJ66="NAP",0,AJ66)),AJ67,AJ70))),"-",SUM(AJ97,-(IF(AJ55="NAP",0,AJ55)),-(IF(AJ56="NAP",0,AJ56)),AJ63,-(IF(AJ66="NAP",0,AJ66)),AJ67,AJ70)) -> - | AK98: - | AL98: - | AM98: - | AN98: - | AO98: - | AP98: - | AQ98: - | AS98: =IF(OR(AS97="",AS55="",AS56="",AS63="",AS66="",AS67="",AS70="",AS97="NAV",AS55="NAV",AS56="NAV",AS63="NAV",AS66="NAV",AS67="NAV",AS70="NAV",AS97="-",AS55="",AS56="-",AS63="-",AS66="-",AS67="-",AS70="-",ISERROR(SUM(AS97,-(IF(AS55="NAP",0,AS55)),-(IF(AS56="NAP",0,AS56)),AS63,-(IF(AS66="NAP",0,AS66)),AS67,AS70))),"-",SUM(AS97,-(IF(AS55="NAP",0,AS55)),-(IF(AS56="NAP",0,AS56)),AS63,-(IF(AS66="NAP",0,AS66)),AS67,AS70)) -> - | AT98: - | AU98: - | AV98: - | AW98: - | AX98: -
A99: B7N | B99: B7n | C99: Net adjusted disposable income | F99: =IF(OR(F98="",F83="",F98="NAV",F83="NAV",F98="-",F83="-",ISERROR(SUM(F98,F83))),"-",SUM(F98,F83)) -> - | G99: =IF(OR(G98="",G83="",G98="NAV",G83="NAV",G98="-",G83="-",ISERROR(SUM(G98,G83))),"-",SUM(G98,G83)) -> - | H99: - | I99: - | J99: - | M99: =IF(OR(M98="",M83="",M98="NAV",M83="NAV",M98="-",M83="-",ISERROR(SUM(M98,M83))),"-",SUM(M98,M83)) -> - | N99: - | O99: - | P99: - | Q99: - | S99: =IF(OR(S98="",S83="",S98="NAV",S83="NAV",S98="-",S83="-",ISERROR(SUM(S98,S83))),"-",SUM(S98,S83)) -> - | T99: - | U99: - | V99: - | W99: - | X99: - | Y99: - | Z99: - | AA99: - | AB99: - | AD99: =IF(OR(AD98="",AD83="",AD98="NAV",AD83="NAV",AD98="-",AD83="-",ISERROR(SUM(AD98,AD83))),"-",SUM(AD98,AD83)) -> - | AE99: - | AF99: - | AG99: - | AJ99: =IF(OR(AJ98="",AJ83="",AJ98="NAV",AJ83="NAV",AJ98="-",AJ83="-",ISERROR(SUM(AJ98,AJ83))),"-",SUM(AJ98,AJ83)) -> - | AK99: - | AL99: - | AM99: - | AN99: - | AO99: - | AP99: - | AQ99: - | AS99: =IF(OR(AS98="",AS83="",AS98="NAV",AS83="NAV",AS98="-",AS83="-",ISERROR(SUM(AS98,AS83))),"-",SUM(AS98,AS83)) -> - | AT99: - | AU99: - | AV99: - | AW99: - | AX99: -

Sheet Consumption&Saving - COICOP2018
AB1: i
B4: Consumption & Saving | D4: Method(s) used | F4: National Accounts Households S14 | M4: Micro Source | N4: Discrepancy | P4: Quintiles Q1 + Q2 + Q3 + Q4 + Q5 = Private households (B3) | V4: Deciles D1 + D2 + D3 + D4 + D5 + D6 + D7 + D8 + D9 + D10 = Private households (B3) | AG4: Percentile and other information | AM4: Household type Σ of groups = Private households (B3) | AV4: Main source of income Σ of groups = Private households (B3)
F5: Original estimates (A1) | G5: NPISH amount (A2) | H5: Expenditure of non-residents on territory (A3) | I5: Adjusted estimates | M5: Micro Source Aggregate | P5: Q1 | Q5: Q2 | R5: Q3 | S5: Q4 | T5: Q5 | V5: D1 | W5: D2 | X5: D3 | Y5: D4 | Z5: D5 | AA5: D6 | AB5: D7 | AC5: D8 | AD5: D9 | AE5: D10 | AG5: Bottom 5% | AH5: Top 5% | AI5: Top 1% | AJ5: Top 0.1% | AM5: Single less 65 year old | AN5: Single 65 and older | AO5: Single with children living at home | AP5: Two adults less than 65 no child living at home | AQ5: Two adults at least one 65 or older no child living at home | AR5: Two adults with less than 3 children living at home | AS5: Two adults with at least 3 children living at home | AT5: Others | AV5: Wages and salaries | AW5: Income from self-employment | AX5: Net property income | AY5: Current transfers received
A6: dotstatcode | I6: Expenditure of residents abroad (A4) | J6: Total of S14 (B1 = B2 + B3 = A1-A2-A3+A4) | K6: Institutional households (B2) | L6: Private households (B3) | M6: (C) | N6: D = B3 - C | AY6: Total | AZ6: of which: Pension transfer received | BA6: of which: Other transfer received
A7: CP010 | B7: CP01 | C7: Food and non-alcoholic beverages | D7: A | F7: 3199869.925 | H7: 56002.45719 | I7: 124257.0876 | J7: 3131615.295 | K7: 2604.953874 | L7: 3129010.341 | M7: 2243328.328 | N7: =L7-M7 -> 885682.0132 | P7: 416594.6009 | Q7: 555730.3934 | R7: 649133.2482 | S7: 717922.4728 | T7: 789629.6255
A8: CP020 | B8: CP02 | C8: Alcoholic beverages, tobacco and narcotics | D8: Mixed | F8: 1368366.088 | H8: 21663.47107 | I8: 40970.83657 | J8: 1349058.722 | K8: 621.6798659 | L8: 1348437.042 | M8: 278529.1298 | N8: =L8-M8 -> 1069907.912 | P8: 176290.7572 | Q8: 222451.7471 | R8: 315406.2997 | S8: 317115.7575 | T8: 317172.4806
C9: A -- components which are a true match
C10: B -- components which are proxies
C11: C -- components which are derived from auxiliary info
C12: D -- components which have no info
C13: A -- components which are a true match
C14: B -- components which are proxies
C15: C -- components which are derived from auxiliary info
C16: D -- components which have no info
A17: CP030 | B17: CP03 | C17: Clothing and footwear | D17: C | F17: 916227.3913 | H17: 27819.56149 | I17: 35690.96939 | J17: 908355.9834 | K17: 0 | L17: 908355.9834 | M17: 511558.8271 | N17: 396797.1563 | P17: 51381.13896 | Q17: 114963.4151 | R17: 186638.3008 | S17: 239468.9368 | T17: 315904.1919
A18: CP040 | B18: CP04 | C18: Housing, water, electricity, gas and other fuels | D18: Select a method | F18: =IF(OR(F19="",F20="",F21="",F22="",F23="",F19="NAV",F20="NAV",F21="NAV",F22="NAV",F23="NAV",F19="-",F20="-",F21="-",F22="-",F23="-",ISERROR(SUM(F19,F20,F21,F22,F23))),"-",SUM(F19,F20,F21,F22,F23)) -> 2700236.057 | H18: =IF(OR(H19="",H20="",H21="",H22="",H23="",H19="NAV",H20="NAV",H21="NAV",H22="NAV",H23="NAV",H19="-",H20="-",H21="-",H22="-",H23="-",ISERROR(SUM(H19,H20,H21,H22,H23))),"-",SUM(H19,H20,H21,H22,H23)) -> 206.5920241 | I18: 161.0295158 | J18: 2700190.494 | K18: 0 | L18: 2700190.494 | M18: 2709812.953 | N18: -9622.458175 | P18: =IF(OR(P19="",P20="",P21="",P22="",P23="",P19="NAV",P20="NAV",P21="NAV",P22="NAV",P23="NAV",P19="-",P20="-",P21="-",P22="-",P23="-",ISERROR(SUM(P19,P20,P21,P22,P23))),"-",SUM(P19,P20,P21,P22,P23)) -> 394753.7008 | Q18: 467490.7872 | R18: 533586.5999 | S18: 602782.965 | T18: 701576.4416 | V18: =IF(OR(V19="",V20="",V21="",V22="",V23="",V19="NAV",V20="NAV",V21="NAV",V22="NAV",V23="NAV",V19="-",V20="-",V21="-",V22="-",V23="-",ISERROR(SUM(V19,V20,V21,V22,V23))),"-",SUM(V19,V20,V21,V22,V23)) -> - | W18: - | X18: - | Y18: - | Z18: - | AA18: - | AB18: - | AC18: - | AD18: - | AE18: - | AG18: =IF(OR(AG19="",AG20="",AG21="",AG22="",AG23="",AG19="NAV",AG20="NAV",AG21="NAV",AG22="NAV",AG23="NAV",AG19="-",AG20="-",AG21="-",AG22="-",AG23="-",ISERROR(SUM(AG19,AG20,AG21,AG22,AG23))),"-",SUM(AG19,AG20,AG21,AG22,AG23)) -> - | AH18: - | AI18: - | AJ18: - | AM18: =IF(OR(AM19="",AM20="",AM21="",AM22="",AM23="",AM19="NAV",AM20="NAV",AM21="NAV",AM22="NAV",AM23="NAV",AM19="-",AM20="-",AM21="-",AM22="-",AM23="-",ISERROR(SUM(AM19,AM20,AM21,AM22,AM23))),"-",SUM(AM19,AM20,AM21,AM22,AM23)) -> - | AN18: - | AO18: - | AP18: - | AQ18: - | AR18: - | AS18: - | AT18: - | AV18: =IF(OR(AV19="",AV20="",AV21="",AV22="",AV23="",AV19="NAV",AV20="NAV",AV21="NAV",AV22="NAV",AV23="NAV",AV19="-",AV20="-",AV21="-",AV22="-",AV23="-",ISERROR(SUM(AV19,AV20,AV21,AV22,AV23))),"-",SUM(AV19,AV20,AV21,AV22,AV23)) -> - | AW18: - | AX18: - | AY18: - | AZ18: - | BA18: -
A19: CP041 | B19: CP041 | C19: Actual rentals for housing | D19: A | F19: 144461.5153 | H19: 0 | I19: 0 | J19: 144461.5153 | K19: 0 | L19: 144461.5153 | M19: 169076.4408 | N19: -24614.9255 | P19: 17412.05657 | Q19: 21010.04973 | R19: 25892.93952 | S19: 35025.63572 | T19: 45120.83375
A20: CP042 | B20: CP042 | C20: Imputed rentals for housing | D20: A | F20: 1493008.399 | H20: 0 | I20: 0 | J20: 1493008.399 | K20: 0 | L20: 1493008.399 | M20: 1302285.614 | N20: 190722.7846 | P20: 218088.5344 | Q20: 256288.1165 | R20: 290508.4981 | S20: 329746.2228 | T20: 398377.027
A21: CP043 | B21: CP043 | C21: Maintenance, repair and security of the dwelling | D21: A | F21: 50894.32945 | H21: 206.5920241 | I21: 161.0295158 | J21: 50848.76694 | K21: 0 | L21: 50848.76694 | M21: 98406.98655 | N21: -47558.21961 | P21: 3302.405514 | Q21: 6436.113174 | R21: 7310.870432 | S21: 13040.19425 | T21: 20759.18357
A22: CP044 | B22: CP044 | C22: Water supply and miscellaneous services relating to the dwelling | D22: A | F22: 201186.061 | H22: 0 | I22: 0 | J22: 201186.061 | K22: 0 | L22: 201186.061 | M22: 366924.5519 | N22: -165738.4909 | P22: 25391.97315 | Q22: 34142.9014 | R22: 43600.75748 | S22: 45893.79238 | T22: 52156.63659
A23: CP045 | B23: CP045 | C23: Electricity, gas and other fuels | D23: A | F23: 810685.7523 | H23: 0 | I23: 0 | J23: 810685.7523 | K23: 0 | L23: 810685.7523 | M23: 773119.359 | N23: 37566.39325 | P23: 130558.7311 | Q23: 149613.6065 | R23: 166273.5343 | S23: 179077.1198 | T23: 185162.7606
A24: CP050 | B24: CP05 | C24: Furnishings, households equipment and routine household maintenance | D24: A | F24: 689436.9353 | H24: 10541.06506 | I24: 33849.29732 | J24: 712745.1676 | K24: 0 | L24: 712745.1676 | M24: 551738.6455 | N24: 161006.5221 | P24: 51129.05138 | Q24: 95431.80182 | R24: 136309.1512 | S24: 176614.8979 | T24: 253260.2653
A25: CP060 | B25: CP06 | C25: Health | D25: Select a method | F25: =IF(OR(F26="",F27="",F28="",F29="",F26="NAV",F27="NAV",F28="NAV",F29="NAV",F26="-",F27="-",F28="-",F29="-",ISERROR(SUM(F26,F27,F28,F29))),"-",SUM(F26,F27,F28,F29)) -> 895786.2802 | H25: =IF(OR(H26="",H27="",H28="",H29="",H26="NAV",H27="NAV",H28="NAV",H29="NAV",H26="-",H27="-",H28="-",H29="-",ISERROR(SUM(H26,H27,H28,H29))),"-",SUM(H26,H27,H28,H29)) -> 11729.33334 | I25: 4351.024435 | J25: 888407.9713 | K25: 910.9969265 | L25: 887496.9743 | M25: 683138.805 | N25: 204358.1694 | P25: =IF(OR(P26="",P27="",P28="",P29="",P26="NAV",P27="NAV",P28="NAV",P29="NAV",P26="-",P27="-",P28="-",P29="-",ISERROR(SUM(P26,P27,P28,P29))),"-",SUM(P26,P27,P28,P29)) -> 97817.8058 | Q25: 152299.0676 | R25: 179425.5881 | S25: 210802.6577 | T25: 247151.8551 | V25: =IF(OR(V26="",V27="",V28="",V29="",V26="NAV",V27="NAV",V28="NAV",V29="NAV",V26="-",V27="-",V28="-",V29="-",ISERROR(SUM(V26,V27,V28,V29))),"-",SUM(V26,V27,V28,V29)) -> - | W25: - | X25: - | Y25: - | Z25: - | AA25: - | AB25: - | AC25: - | AD25: - | AE25: - | AG25: =IF(OR(AG26="",AG27="",AG28="",AG29="",AG26="NAV",AG27="NAV",AG28="NAV",AG29="NAV",AG26="-",AG27="-",AG28="-",AG29="-",ISERROR(SUM(AG26,AG27,AG28,AG29))),"-",SUM(AG26,AG27,AG28,AG29)) -> - | AH25: - | AI25: - | AJ25: - | AM25: =IF(OR(AM26="",AM27="",AM28="",AM29="",AM26="NAV",AM27="NAV",AM28="NAV",AM29="NAV",AM26="-",AM27="-",AM28="-",AM29="-",ISERROR(SUM(AM26,AM27,AM28,AM29))),"-",SUM(AM26,AM27,AM28,AM29)) -> - | AN25: - | AO25: - | AP25: - | AQ25: - | AR25: - | AS25: - | AT25: - | AV25: =IF(OR(AV26="",AV27="",AV28="",AV29="",AV26="NAV",AV27="NAV",AV28="NAV",AV29="NAV",AV26="-",AV27="-",AV28="-",AV29="-",ISERROR(SUM(AV26,AV27,AV28,AV29))),"-",SUM(AV26,AV27,AV28,AV29)) -> - | AW25: - | AX25: - | AY25: - | AZ25: - | BA25: -
A26: CP061 | B26: CP061 | C26: Medicine and health products | D26: A | F26: 355838.6125 | H26: 6424.895058 | I26: 4351.024435 | J26: 353764.7419 | K26: 910.9969265 | L26: 352853.745 | M26: 375682.4036 | N26: -22828.65864 | P26: 57125.3589 | Q26: 76731.71097 | R26: 76965.37483 | S26: 71709.9027 | T26: 70321.3976
A27: CP062 | B27: CP062 | C27: Out-patient care services | D27: C | F27: 448798.8725 | H27: 849.1602127 | I27: 0 | J27: 447949.7122 | K27: 0 | L27: 447949.7122 | M27: 208629.1115 | N27: 239320.6008 | P27: 33886.5604 | Q27: 63004.30021 | R27: 87259.35295 | S27: 114985.4654 | T27: 148814.0333
A28: CP063 | B28: CP063 | C28: Inpatient care services | D28: A | F28: 40683.9575 | H28: 4454.19129 | I28: 0 | J28: 36229.76621 | K28: 0 | L28: 36229.76621 | M28: 72305.11303 | N28: -36075.34682 | P28: 3593.050053 | Q28: 6555.99777 | R28: 5796.106182 | S28: 9309.586975 | T28: 10975.02523
B29: CP064 | C29: Other health services | D29: C | F29: 50464.83766 | H29: 1.086779023 | I29: 0 | J29: 50463.75088 | K29: 0 | L29: 50463.75088 | M29: 26522.17681 | N29: 23941.57407 | P29: 3212.836442 | Q29: 6007.058642 | R29: 9404.754128 | S29: 14797.70267 | T29: 17041.399
A30: CP070 | B30: CP07 | C30: Transport | D30: Select a method | F30: =IF(OR(F31="",F32="",F33="",F34="",F31="NAV",F32="NAV",F33="NAV",F34="NAV",F31="-",F32="-",F33="-",F34="-",ISERROR(SUM(F31,F32,F33,F34))),"-",SUM(F31,F32,F33,F34)) -> 2161151.262 | H30: =IF(OR(H31="",H32="",H33="",H34="",H31="NAV",H32="NAV",H33="NAV",H34="NAV",H31="-",H32="-",H33="-",H34="-",ISERROR(SUM(H31,H32,H33,H34))),"-",SUM(H31,H32,H33,H34)) -> 116443.8715 | I30: 107412.8509 | J30: 2152120.241 | K30: 10.57746255 | L30: 2152109.664 | M30: 1411643.332 | N30: 740466.3313 | P30: =IF(OR(P31="",P32="",P33="",P34="",P31="NAV",P32="NAV",P33="NAV",P34="NAV",P31="-",P32="-",P33="-",P34="-",ISERROR(SUM(P31,P32,P33,P34))),"-",SUM(P31,P32,P33,P34)) -> 121362.9843 | Q30: 260580.6084 | R30: 425625.5526 | S30: 592794.3048 | T30: 751746.2137 | V30: =IF(OR(V31="",V32="",V33="",V34="",V31="NAV",V32="NAV",V33="NAV",V34="NAV",V31="-",V32="-",V33="-",V34="-",ISERROR(SUM(V31,V32,V33,V34))),"-",SUM(V31,V32,V33,V34)) -> - | W30: - | X30: - | Y30: - | Z30: - | AA30: - | AB30: - | AC30: - | AD30: - | AE30: - | AG30: =IF(OR(AG31="",AG32="",AG33="",AG34="",AG31="NAV",AG32="NAV",AG33="NAV",AG34="NAV",AG31="-",AG32="-",AG33="-",AG34="-",ISERROR(SUM(AG31,AG32,AG33,AG34))),"-",SUM(AG31,AG32,AG33,AG34)) -> - | AH30: - | AI30: - | AJ30: - | AM30: =IF(OR(AM31="",AM32="",AM33="",AM34="",AM31="NAV",AM32="NAV",AM33="NAV",AM34="NAV",AM31="-",AM32="-",AM33="-",AM34="-",ISERROR(SUM(AM31,AM32,AM33,AM34))),"-",SUM(AM31,AM32,AM33,AM34)) -> - | AN30: - | AO30: - | AP30: - | AQ30: - | AR30: - | AS30: - | AT30: - | AV30: =IF(OR(AV31="",AV32="",AV33="",AV34="",AV31="NAV",AV32="NAV",AV33="NAV",AV34="NAV",AV31="-",AV32="-",AV33="-",AV34="-",ISERROR(SUM(AV31,AV32,AV33,AV34))),"-",SUM(AV31,AV32,AV33,AV34)) -> - | AW30: - | AX30: - | AY30: - | AZ30: - | BA30: -
A31: CP071 | B31: CP071 | C31: Purchases of vehicles | D31: A | F31: 481868.9412 | H31: 67631.60412 | I31: 1417.403817 | J31: 415654.7409 | K31: 0 | L31: 415654.7409 | M31: 477090.3793 | N31: -61435.6384 | P31: 16129.94529 | Q31: 35456.3863 | R31: 69955.10668 | S31: 136171.0099 | T31: 157942.2927
A32: CP072 | B32: CP072 | C32: Operation of personal transport equipment | D32: Select a method | F32: 1263050.9 | H32: 27942.93111 | I32: 43151.02203 | J32: 1278258.99 | K32: 0 | L32: 1278258.99 | M32: 751362.1839 | N32: 526896.8066 | P32: 73154.44174 | Q32: 170092.3629 | R32: 269802.6356 | S32: 339153.1291 | T32: 426056.4212
A33: CP073 | B33: CP073 | C33: Passenger transport services | D33: C | F33: 403705.2077 | H33: 20868.11505 | I33: 62843.9119 | J33: 445681.0046 | K33: 0 | L33: 445681.0046 | M33: 176499.1407 | N33: 269181.8639 | P33: 28620.71673 | Q33: 53085.99525 | R33: 83180.77909 | S33: 115383.7008 | T33: 165409.8127
B34: CP074 | C34: Transport services of goods | D34: Select a method | F34: 12526.21339 | H34: 1.221263912 | I34: 0.5131498833 | J34: 12525.50528 | K34: 10.57746255 | L34: 12514.92781 | M34: 6691.628648 | N34: 5823.299165 | P34: 3457.880489 | Q34: 1945.863963 | R34: 2687.031166 | S34: 2086.465054 | T34: 2337.687141
A35: CP080 | B35: CP08 | C35: Information and communication | D35: Select a method | F35: 744691.8263 | H35: 6683.900027 | I35: 2292.996233 | J35: 740300.9225 | K35: 0 | L35: 740300.9225 | M35: 585730.5799 | N35: 154570.3426 | P35: 79390.90982 | Q35: 117263.3662 | R35: 152272.5819 | S35: 178864.1032 | T35: 212509.9613
A36: CP090 | B36: CP09 | C36: Recreation, sport and culture | D36: Mixed | F36: 1546714.041 | H36: 64620.48453 | I36: 69260.42865 | J36: 1551353.985 | K36: 229.1275968 | L36: 1551124.857 | M36: 658145.8729 | N36: 892978.9842 | P36: 71229.93738 | Q36: 147423.3118 | R36: 265918.071 | S36: 435821.7937 | T36: 630731.7432
C37: A -- components which are a true match
C38: B -- components which are proxies
C39: C -- components which are derived from auxiliary info
C40: D -- components which have no info
C41: A -- components which are a true match
C42: B -- components which are proxies
C43: C -- components which are derived from auxiliary info
C44: D -- components which have no info
A45: CP100 | B45: CP10 | C45: Education | D45: C | F45: 306986.1692 | H45: 95267.30882 | I45: 62787.602 | J45: 274506.4623 | K45: 0 | L45: 274506.4623 | M45: 115675.9043 | N45: 158830.5581 | P45: 5398.878955 | Q45: 14120.32802 | R45: 44661.65426 | S45: 83511.67662 | T45: 126813.9245
A46: CP110 | B46: CP11 | C46: Restaurants and accommodation services | D46: Mixed | F46: 1160026.442 | H46: 371839.9091 | I46: 225039.2371 | J46: 1013225.77 | K46: 0 | L46: 1013225.77 | M46: 521301.2956 | N46: 491924.4747 | P46: 42192.25805 | Q46: 90264.93267 | R46: 171195.1938 | S46: 257483.6695 | T46: 452089.7163
C47: A -- components which are a true match
C48: B -- components which are proxies
C49: C -- components which are derived from auxiliary info
C50: D -- components which have no info
A51: CP120 | B51: CP12 | C51: Insurance and financial services | D51: Select a method | F51: =IF(OR(F52="",F53="",F54="",F52="NAV",F53="NAV",F54="NAV",F52="-",F53="-",F54="-",ISERROR(SUM(F52,F53,F54))),"-",SUM(F52,F53,F54)) -> 486559.8538 | G51: =IF(OR(G52="",G53="",G54="",G52="NAV",G53="NAV",G54="NAV",G52="-",G53="-",G54="-",ISERROR(SUM(G52,G53,G54))),"-",SUM(G52,G53,G54)) -> - | H51: 0 | I51: 0 | J51: 486559.8538 | K51: 0 | L51: 486559.8538 | M51: 185107.8139 | N51: 301452.0399 | P51: =IF(OR(P52="",P53="",P54="",P52="NAV",P53="NAV",P54="NAV",P52="-",P53="-",P54="-",ISERROR(SUM(P52,P53,P54))),"-",SUM(P52,P53,P54)) -> 23426.4194 | Q51: 53300.45023 | R51: 78501.47853 | S51: 122075.6501 | T51: 209255.8555 | V51: =IF(OR(V52="",V53="",V54="",V52="NAV",V53="NAV",V54="NAV",V52="-",V53="-",V54="-",ISERROR(SUM(V52,V53,V54))),"-",SUM(V52,V53,V54)) -> - | W51: - | X51: - | Y51: - | Z51: - | AA51: - | AB51: - | AC51: - | AD51: - | AE51: - | AG51: =IF(OR(AG52="",AG53="",AG54="",AG52="NAV",AG53="NAV",AG54="NAV",AG52="-",AG53="-",AG54="-",ISERROR(SUM(AG52,AG53,AG54))),"-",SUM(AG52,AG53,AG54)) -> - | AH51: - | AI51: - | AJ51: - | AM51: =IF(OR(AM52="",AM53="",AM54="",AM52="NAV",AM53="NAV",AM54="NAV",AM52="-",AM53="-",AM54="-",ISERROR(SUM(AM52,AM53,AM54))),"-",SUM(AM52,AM53,AM54)) -> - | AN51: - | AO51: - | AP51: - | AQ51: - | AR51: - | AS51: - | AT51: - | AV51: =IF(OR(AV52="",AV53="",AV54="",AV52="NAV",AV53="NAV",AV54="NAV",AV52="-",AV53="-",AV54="-",ISERROR(SUM(AV52,AV53,AV54))),"-",SUM(AV52,AV53,AV54)) -> - | AW51: - | AX51: - | AY51: - | AZ51: - | BA51: -
A52: CP12x | B52: CP121 | C52: Insurance | D52: Select a method | F52: 193867.6817 | H52: 0 | I52: 0 | J52: 193867.6817 | K52: 0 | L52: 193867.6817 | M52: 174498.117 | N52: 19369.56468 | P52: 8279.696555 | Q52: 22232.31561 | R52: 36274.04201 | S52: 54265.05049 | T52: 72816.57705
A53: CP1261 | B53: CP1221 | C53: FISIM | D53: B | F53: 193739.6154 | H53: 0 | I53: 0 | J53: 193739.6154 | K53: 0 | L53: 193739.6154 | M53: 0 | N53: 193739.6154 | P53: 9119.419303 | Q53: 19911.11782 | R53: 25948.99873 | S53: 45886.62555 | T53: 92873.45395
B54: CP122X | C54: Other financial services | D54: D | F54: 98952.55672 | H54: 0 | I54: 0 | J54: 98952.55672 | K54: 0 | L54: 98952.55672 | M54: 10609.69687 | N54: 88342.85985 | P54: 6027.303537 | Q54: 11157.01679 | R54: 16278.43779 | S54: 21923.9741 | T54: 43565.8245
A55: CP120 | B55: CP13 | C55: Personal care, social protection and miscellaneous goods and services | D55: Mixed | F55: 698806.2094 | H55: 28749.64054 | I55: 10494.18984 | J55: 680550.7587 | K55: 17.4469238 | L55: 680533.3118 | M55: 476207.8839 | N55: 204325.4279 | P55: 46510.50974 | Q55: 86667.61016 | R55: 131612.3503 | S55: 150915.8212 | T55: 264827.0204
C56: A -- components which are a true match
C57: B -- components which are proxies
C58: C -- components which are derived from auxiliary info
C59: D -- components which have no info
A60: P31DC | B60: P31DC | C60: Final domestic consumption expenditure | D60: Select a method | F60: =IF(OR(F7="",F8="",F17="",F18="",F24="",F25="",F30="",F35="",F36="",F45="",F46="",F51="",F55="",F7="NAV",F8="NAV",F17="NAV",F18="NAV",F24="NAV",F25="NAV",F30="NAV",F35="NAV",F36="NAV",F45="NAV",F46="NAV",F51="NAV",F55="NAV",F7="-",F8="-",F17="-",F18="-",F24="-",F25="-",F30="-",F35="-",F36="-",F45="-",F46="-",F51="-",F55="-",ISERROR(SUM(F7,F8,F17,F18,F24,F25,F30,F35,F36,F45,F46,F51,F55))),"-",SUM(F7,F8,F17,F18,F24,F25,F30,F35,F36,F45,F46,F51,F55)) -> 16874858.48 | G60: - | H60: 811567.5948 | I60: 716567.5496 | J60: 16588991.63 | K60: 4394.78265 | L60: 16584596.84 | M60: 10931919.37 | N60: 5652677.474 | P60: =IF(OR(P7="",P8="",P17="",P18="",P24="",P25="",P30="",P35="",P36="",P45="",P46="",P51="",P55="",P7="NAV",P8="NAV",P17="NAV",P18="NAV",P24="NAV",P25="NAV",P30="NAV",P35="NAV",P36="NAV",P45="NAV",P46="NAV",P51="NAV",P55="NAV",P7="-",P8="-",P17="-",P18="-",P24="-",P25="-",P30="-",P35="-",P36="-",P45="-",P46="-",P51="-",P55="-",ISERROR(SUM(P7,P8,P17,P18,P24,P25,P30,P35,P36,P45,P46,P51,P55))),"-",SUM(P7,P8,P17,P18,P24,P25,P30,P35,P36,P45,P46,P51,P55)) -> 1577478.953 | Q60: =IF(OR(Q7="",Q8="",Q17="",Q18="",Q24="",Q25="",Q30="",Q35="",Q36="",Q45="",Q46="",Q51="",Q55="",Q7="NAV",Q8="NAV",Q17="NAV",Q18="NAV",Q24="NAV",Q25="NAV",Q30="NAV",Q35="NAV",Q36="NAV",Q45="NAV",Q46="NAV",Q51="NAV",Q55="NAV",Q7="-",Q8="-",Q17="-",Q18="-",Q24="-",Q25="-",Q30="-",Q35="-",Q36="-",Q45="-",Q46="-",Q51="-",Q55="-",ISERROR(SUM(Q7,Q8,Q17,Q18,Q24,Q25,Q30,Q35,Q36,Q45,Q46,Q51,Q55))),"-",SUM(Q7,Q8,Q17,Q18,Q24,Q25,Q30,Q35,Q36,Q45,Q46,Q51,Q55)) -> 2377987.82 | R60: =IF(OR(R7="",R8="",R17="",R18="",R24="",R25="",R30="",R35="",R36="",R45="",R46="",R51="",R55="",R7="NAV",R8="NAV",R17="NAV",R18="NAV",R24="NAV",R25="NAV",R30="NAV",R35="NAV",R36="NAV",R45="NAV",R46="NAV",R51="NAV",R55="NAV",R7="-",R8="-",R17="-",R18="-",R24="-",R25="-",R30="-",R35="-",R36="-",R45="-",R46="-",R51="-",R55="-",ISERROR(SUM(R7,R8,R17,R18,R24,R25,R30,R35,R36,R45,R46,R51,R55))),"-",SUM(R7,R8,R17,R18,R24,R25,R30,R35,R36,R45,R46,R51,R55)) -> 3270286.07 | S60: =IF(OR(S7="",S8="",S17="",S18="",S24="",S25="",S30="",S35="",S36="",S45="",S46="",S51="",S55="",S7="NAV",S8="NAV",S17="NAV",S18="NAV",S24="NAV",S25="NAV",S30="NAV",S35="NAV",S36="NAV",S45="NAV",S46="NAV",S51="NAV",S55="NAV",S7="-",S8="-",S17="-",S18="-",S24="-",S25="-",S30="-",S35="-",S36="-",S45="-",S46="-",S51="-",S55="-",ISERROR(SUM(S7,S8,S17,S18,S24,S25,S30,S35,S36,S45,S46,S51,S55))),"-",SUM(S7,S8,S17,S18,S24,S25,S30,S35,S36,S45,S46,S51,S55)) -> 4086174.707 | T60: =IF(OR(T7="",T8="",T17="",T18="",T24="",T25="",T30="",T35="",T36="",T45="",T46="",T51="",T55="",T7="NAV",T8="NAV",T17="NAV",T18="NAV",T24="NAV",T25="NAV",T30="NAV",T35="NAV",T36="NAV",T45="NAV",T46="NAV",T51="NAV",T55="NAV",T7="-",T8="-",T17="-",T18="-",T24="-",T25="-",T30="-",T35="-",T36="-",T45="-",T46="-",T51="-",T55="-",ISERROR(SUM(T7,T8,T17,T18,T24,T25,T30,T35,T36,T45,T46,T51,T55))),"-",SUM(T7,T8,T17,T18,T24,T25,T30,T35,T36,T45,T46,T51,T55)) -> 5272669.295 | V60: =IF(OR(V7="",V8="",V17="",V18="",V24="",V25="",V30="",V35="",V36="",V45="",V46="",V51="",V55="",V7="NAV",V8="NAV",V17="NAV",V18="NAV",V24="NAV",V25="NAV",V30="NAV",V35="NAV",V36="NAV",V45="NAV",V46="NAV",V51="NAV",V55="NAV",V7="-",V8="-",V17="-",V18="-",V24="-",V25="-",V30="-",V35="-",V36="-",V45="-",V46="-",V51="-",V55="-",ISERROR(SUM(V7,V8,V17,V18,V24,V25,V30,V35,V36,V45,V46,V51,V55))),"-",SUM(V7,V8,V17,V18,V24,V25,V30,V35,V36,V45,V46,V51,V55)) -> - | W60: - | X60: - | Y60: - | Z60: - | AA60: - | AB60: - | AC60: - | AD60: - | AE60: - | AG60: =IF(OR(AG7="",AG8="",AG17="",AG18="",AG24="",AG25="",AG30="",AG35="",AG36="",AG45="",AG46="",AG51="",AG55="",AG7="NAV",AG8="NAV",AG17="NAV",AG18="NAV",AG24="NAV",AG25="NAV",AG30="NAV",AG35="NAV",AG36="NAV",AG45="NAV",AG46="NAV",AG51="NAV",AG55="NAV",AG7="-",AG8="-",AG17="-",AG18="-",AG24="-",AG25="-",AG30="-",AG35="-",AG36="-",AG45="-",AG46="-",AG51="-",AG55="-",ISERROR(SUM(AG7,AG8,AG17,AG18,AG24,AG25,AG30,AG35,AG36,AG45,AG46,AG51,AG55))),"-",SUM(AG7,AG8,AG17,AG18,AG24,AG25,AG30,AG35,AG36,AG45,AG46,AG51,AG55)) -> - | AH60: =IF(OR(AH7="",AH8="",AH17="",AH18="",AH24="",AH25="",AH30="",AH35="",AH36="",AH45="",AH46="",AH51="",AH55="",AH7="NAV",AH8="NAV",AH17="NAV",AH18="NAV",AH24="NAV",AH25="NAV",AH30="NAV",AH35="NAV",AH36="NAV",AH45="NAV",AH46="NAV",AH51="NAV",AH55="NAV",AH7="-",AH8="-",AH17="-",AH18="-",AH24="-",AH25="-",AH30="-",AH35="-",AH36="-",AH45="-",AH46="-",AH51="-",AH55="-",ISERROR(SUM(AH7,AH8,AH17,AH18,AH24,AH25,AH30,AH35,AH36,AH45,AH46,AH51,AH55))),"-",SUM(AH7,AH8,AH17,AH18,AH24,AH25,AH30,AH35,AH36,AH45,AH46,AH51,AH55)) -> - | AI60: =IF(OR(AI7="",AI8="",AI17="",AI18="",AI24="",AI25="",AI30="",AI35="",AI36="",AI45="",AI46="",AI51="",AI55="",AI7="NAV",AI8="NAV",AI17="NAV",AI18="NAV",AI24="NAV",AI25="NAV",AI30="NAV",AI35="NAV",AI36="NAV",AI45="NAV",AI46="NAV",AI51="NAV",AI55="NAV",AI7="-",AI8="-",AI17="-",AI18="-",AI24="-",AI25="-",AI30="-",AI35="-",AI36="-",AI45="-",AI46="-",AI51="-",AI55="-",ISERROR(SUM(AI7,AI8,AI17,AI18,AI24,AI25,AI30,AI35,AI36,AI45,AI46,AI51,AI55))),"-",SUM(AI7,AI8,AI17,AI18,AI24,AI25,AI30,AI35,AI36,AI45,AI46,AI51,AI55)) -> - | AJ60: =IF(OR(AJ7="",AJ8="",AJ17="",AJ18="",AJ24="",AJ25="",AJ30="",AJ35="",AJ36="",AJ45="",AJ46="",AJ51="",AJ55="",AJ7="NAV",AJ8="NAV",AJ17="NAV",AJ18="NAV",AJ24="NAV",AJ25="NAV",AJ30="NAV",AJ35="NAV",AJ36="NAV",AJ45="NAV",AJ46="NAV",AJ51="NAV",AJ55="NAV",AJ7="-",AJ8="-",AJ17="-",AJ18="-",AJ24="-",AJ25="-",AJ30="-",AJ35="-",AJ36="-",AJ45="-",AJ46="-",AJ51="-",AJ55="-",ISERROR(SUM(AJ7,AJ8,AJ17,AJ18,AJ24,AJ25,AJ30,AJ35,AJ36,AJ45,AJ46,AJ51,AJ55))),"-",SUM(AJ7,AJ8,AJ17,AJ18,AJ24,AJ25,AJ30,AJ35,AJ36,AJ45,AJ46,AJ51,AJ55)) -> - | AM60: =IF(OR(AM7="",AM8="",AM17="",AM18="",AM24="",AM25="",AM30="",AM35="",AM36="",AM45="",AM46="",AM51="",AM55="",AM7="NAV",AM8="NAV",AM17="NAV",AM18="NAV",AM24="NAV",AM25="NAV",AM30="NAV",AM35="NAV",AM36="NAV",AM45="NAV",AM46="NAV",AM51="NAV",AM55="NAV",AM7="-",AM8="-",AM17="-",AM18="-",AM24="-",AM25="-",AM30="-",AM35="-",AM36="-",AM45="-",AM46="-",AM51="-",AM55="-",ISERROR(SUM(AM7,AM8,AM17,AM18,AM24,AM25,AM30,AM35,AM36,AM45,AM46,AM51,AM55))),"-",SUM(AM7,AM8,AM17,AM18,AM24,AM25,AM30,AM35,AM36,AM45,AM46,AM51,AM55)) -> - | AN60: - | AO60: - | AP60: - | AQ60: - | AR60: - | AS60: - | AT60: - | AV60: =IF(OR(AV7="",AV8="",AV17="",AV18="",AV24="",AV25="",AV30="",AV35="",AV36="",AV45="",AV46="",AV51="",AV55="",AV7="NAV",AV8="NAV",AV17="NAV",AV18="NAV",AV24="NAV",AV25="NAV",AV30="NAV",AV35="NAV",AV36="NAV",AV45="NAV",AV46="NAV",AV51="NAV",AV55="NAV",AV7="-",AV8="-",AV17="-",AV18="-",AV24="-",AV25="-",AV30="-",AV35="-",AV36="-",AV45="-",AV46="-",AV51="-",AV55="-",ISERROR(SUM(AV7,AV8,AV17,AV18,AV24,AV25,AV30,AV35,AV36,AV45,AV46,AV51,AV55))),"-",SUM(AV7,AV8,AV17,AV18,AV24,AV25,AV30,AV35,AV36,AV45,AV46,AV51,AV55)) -> - | AW60: - | AX60: - | AY60: - | AZ60: - | BA60: -
A61: P33_P34 | B61: P33-P34 | C61: Adjustment for expenditures by resident households abroad minus expenditures by non-resident households on the territory | D61: Select a method | F61: =IF(OR(F62="",F63="",F62="NAV",F63="NAV",F62="-",F63="-",ISERROR(SUM(F62,-(IF(F63="NAP",0,F63))))),"-",SUM(F62,-(IF(F63="NAP",0,F63)))) -> - | G61: =IF(OR(G62="",G63="",G62="NAV",G63="NAV",G62="-",G63="-",ISERROR(SUM(G62,-(IF(G63="NAP",0,G63))))),"-",SUM(G62,-(IF(G63="NAP",0,G63)))) -> - | H61: - | I61: - | J61: - | K61: - | L61: - | M61: - | P61: =IF(OR(P62="",P63="",P62="NAV",P63="NAV",P62="-",P63="-",ISERROR(SUM(P62,-(IF(P63="NAP",0,P63))))),"-",SUM(P62,-(IF(P63="NAP",0,P63)))) -> 0 | Q61: 0 | R61: 0 | S61: 0 | T61: 0 | V61: =IF(OR(V62="",V63="",V62="NAV",V63="NAV",V62="-",V63="-",ISERROR(SUM(V62,-(IF(V63="NAP",0,V63))))),"-",SUM(V62,-(IF(V63="NAP",0,V63)))) -> - | W61: - | X61: - | Y61: - | Z61: - | AA61: - | AB61: - | AC61: - | AD61: - | AE61: - | AG61: =IF(OR(AG62="",AG63="",AG62="NAV",AG63="NAV",AG62="-",AG63="-",ISERROR(SUM(AG62,-(IF(AG63="NAP",0,AG63))))),"-",SUM(AG62,-(IF(AG63="NAP",0,AG63)))) -> - | AH61: - | AI61: - | AJ61: - | AM61: =IF(OR(AM62="",AM63="",AM62="NAV",AM63="NAV",AM62="-",AM63="-",ISERROR(SUM(AM62,-(IF(AM63="NAP",0,AM63))))),"-",SUM(AM62,-(IF(AM63="NAP",0,AM63)))) -> - | AN61: - | AO61: - | AP61: - | AQ61: - | AR61: - | AS61: - | AT61: - | AV61: =IF(OR(AV62="",AV63="",AV62="NAV",AV63="NAV",AV62="-",AV63="-",ISERROR(SUM(AV62,-(IF(AV63="NAP",0,AV63))))),"-",SUM(AV62,-(IF(AV63="NAP",0,AV63)))) -> - | AW61: - | AX61: - | AY61: - | AZ61: - | BA61: -
A62: P33 | B62: P33 | C62: Final consumption expenditure of resident households abroad | D62: Select a method | N62: 0 | P62: 0 | Q62: 0 | R62: 0 | S62: 0 | T62: 0
A63: P34 | B63: P34 | C63: Final consumption expenditure of non-resident households on the territory | D63: Select a method | N63: 0 | P63: 0 | Q63: 0 | R63: 0 | S63: 0 | T63: 0
A64: P31NC | B64: P31NC | C64: Final national consumption expenditure | D64: Select a method | F64: =IF(OR(F60="",F61="",F60="NAV",F61="NAV",F60="-",F61="-",ISERROR(SUM(F60:F61))),"-",SUM(F60:F61)) -> - | G64: =IF(OR(G60="",G61="",G60="NAV",G61="NAV",G60="-",G61="-",ISERROR(SUM(G60:G61))),"-",SUM(G60:G61)) -> - | H64: - | I64: - | J64: - | K64: - | L64: - | M64: - | P64: =IF(OR(P60="",P61="",P60="NAV",P61="NAV",P60="-",P61="-",ISERROR(SUM(P60:P61))),"-",SUM(P60:P61)) -> 1577478.953 | Q64: 2377987.82 | R64: 3270286.07 | S64: 4086174.707 | T64: 5272669.295 | V64: =IF(OR(V60="",V61="",V60="NAV",V61="NAV",V60="-",V61="-",ISERROR(SUM(V60:V61))),"-",SUM(V60:V61)) -> - | W64: - | X64: - | Y64: - | Z64: - | AA64: - | AB64: - | AC64: - | AD64: - | AE64: - | AG64: =IF(OR(AG60="",AG61="",AG60="NAV",AG61="NAV",AG60="-",AG61="-",ISERROR(SUM(AG60:AG61))),"-",SUM(AG60:AG61)) -> - | AH64: - | AI64: - | AJ64: - | AM64: =IF(OR(AM60="",AM61="",AM60="NAV",AM61="NAV",AM60="-",AM61="-",ISERROR(SUM(AM60:AM61))),"-",SUM(AM60:AM61)) -> - | AN64: - | AO64: - | AP64: - | AQ64: - | AR64: - | AS64: - | AT64: - | AV64: =IF(OR(AV60="",AV61="",AV60="NAV",AV61="NAV",AV60="-",AV61="-",ISERROR(SUM(AV60:AV61))),"-",SUM(AV60:AV61)) -> - | AW64: - | AX64: - | AY64: - | AZ64: - | BA64: -
A65: D63R_2 | B65: D63R | C65: STiK | D65: Select a method | F65: =Income!F83 -> - | J65: =Income!G83 -> 3076502.136 | K65: =Income!H83 -> 27662.12679 | L65: =Income!I83 -> 3048840.009 | M65: =Income!J83 -> 0 | N65: 3048840.009 | P65: =Income!M83 -> 396195.0115 | Q65: =Income!N83 -> 519922.719 | R65: =Income!O83 -> 635672.2047 | S65: =Income!P83 -> 684276.3068 | T65: =Income!Q83 -> 812773.7673 | V65: =Income!S83 -> - | W65: =Income!T83 -> - | X65: =Income!U83 -> - | Y65: =Income!V83 -> - | Z65: =Income!W83 -> - | AA65: =Income!X83 -> - | AB65: =Income!Y83 -> - | AC65: =Income!Z83 -> - | AD65: =Income!AA83 -> - | AE65: =Income!AB83 -> - | AG65: =Income!AD83 -> - | AH65: =Income!AE83 -> - | AI65: =Income!AF83 -> - | AJ65: =Income!AG83 -> - | AM65: =Income!AJ83 -> - | AN65: =Income!AK83 -> - | AO65: =Income!AL83 -> - | AP65: =Income!AM83 -> - | AQ65: =Income!AN83 -> - | AR65: =Income!AO83 -> - | AS65: =Income!AP83 -> - | AT65: =Income!AQ83 -> - | AV65: =Income!AS83 -> - | AW65: =Income!AT83 -> - | AX65: =Income!AU83 -> - | AY65: =Income!AV83 -> - | AZ65: =Income!AW83 -> - | BA65: =Income!AX83 -> -
A66: P4 | B66: P4 | C66: Actual final consumption | D66: Select a method | F66: =IF(OR(F64="",F65="",F64="NAV",F65="NAV",F64="-",F65="-",ISERROR(SUM(F64:F65))),"-",SUM(F64:F65)) -> - | J66: =IF(OR(J64="",J65="",J64="NAV",J65="NAV",J64="-",J65="-",ISERROR(SUM(J64:J65))),"-",SUM(J64:J65)) -> - | K66: - | L66: - | M66: - | P66: =IF(OR(P64="",P65="",P64="NAV",P65="NAV",P64="-",P65="-",ISERROR(SUM(P64:P65))),"-",SUM(P64:P65)) -> 1973673.964 | Q66: 2897910.539 | R66: 3905958.275 | S66: 4770451.014 | T66: 6085443.062 | V66: =IF(OR(V64="",V65="",V64="NAV",V65="NAV",V64="-",V65="-",ISERROR(SUM(V64:V65))),"-",SUM(V64:V65)) -> - | W66: - | X66: - | Y66: - | Z66: - | AA66: - | AB66: - | AC66: - | AD66: - | AE66: - | AG66: =IF(OR(AG64="",AG65="",AG64="NAV",AG65="NAV",AG64="-",AG65="-",ISERROR(SUM(AG64:AG65))),"-",SUM(AG64:AG65)) -> - | AH66: - | AI66: - | AJ66: - | AM66: =IF(OR(AM64="",AM65="",AM64="NAV",AM65="NAV",AM64="-",AM65="-",ISERROR(SUM(AM64:AM65))),"-",SUM(AM64:AM65)) -> - | AN66: - | AO66: - | AP66: - | AQ66: - | AR66: - | AS66: - | AT66: - | AV66: =IF(OR(AV64="",AV65="",AV64="NAV",AV65="NAV",AV64="-",AV65="-",ISERROR(SUM(AV64:AV65))),"-",SUM(AV64:AV65)) -> - | AW66: - | AX66: - | AY66: - | AZ66: - | BA66: -
N67: 0
A68: B7_2 | B68: B7g | C68: Adjusted disposable income | D68: Select a method | F68: =Income!G87 -> 20615913.1 | J68: =Income!G87 -> 20615913.1 | K68: =Income!H87 -> - | L68: =Income!I87 -> 20575292 | M68: =Income!J87 -> 14487575.79 | N68: 6087716.216 | P68: =Income!M87 -> 1463749.502 | Q68: =Income!N87 -> 2496050.735 | R68: =Income!O87 -> 3518905.024 | S68: =Income!P87 -> 4567445.1 | T68: =Income!Q87 -> 8529141.675 | V68: =Income!S87 -> - | W68: =Income!T87 -> - | X68: =Income!U87 -> - | Y68: =Income!V87 -> - | Z68: =Income!W87 -> - | AA68: =Income!X87 -> - | AB68: =Income!Y87 -> - | AC68: =Income!Z87 -> - | AD68: =Income!AA87 -> - | AE68: =Income!AB87 -> - | AG68: =Income!AD87 -> - | AH68: =Income!AE87 -> - | AI68: =Income!AF87 -> - | AJ68: =Income!AG87 -> - | AM68: =Income!AJ87 -> - | AN68: =Income!AK87 -> - | AO68: =Income!AL87 -> - | AP68: =Income!AM87 -> - | AQ68: =Income!AN87 -> - | AR68: =Income!AO87 -> - | AS68: =Income!AP87 -> - | AT68: =Income!AQ87 -> - | AV68: =Income!AS87 -> - | AW68: =Income!AT87 -> - | AX68: =Income!AU87 -> - | AY68: =Income!AV87 -> - | AZ68: =Income!AW87 -> - | BA68: =Income!AX87 -> -
A69: D8R | B69: D8R | C69: Adjustment for the change in pension entitlements | D69: Select a method | F69: 621130 | G69: 0 | H69: 0 | I69: 0 | J69: 621130 | K69: -420.1526236 | L69: 621550.1526 | N69: =L69-M69 -> 621550.1526 | P69: -167332.9518 | Q69: -117996.4533 | R69: 68566.08256 | S69: 240100.4734 | T69: 598213.0017
A70: B8 | B70: B8g | C70: Gross Saving | F70: =IF(OR(F68="",F69="",F68="NAV",F69="NAV",F68="-",F69="-",ISERROR(SUM(F68:F69,-(IF(F66="NAP",0,F66))))),"-",SUM(F68:F69,-(IF(F66="NAP",0,F66)))) -> - | J70: =IF(OR(J68="",J69="",J68="NAV",J69="NAV",J68="-",J69="-",ISERROR(SUM(J68:J69,-(IF(J66="NAP",0,J66))))),"-",SUM(J68:J69,-(IF(J66="NAP",0,J66)))) -> - | K70: - | L70: - | M70: - | P70: =IF(OR(P68="",P69="",P68="NAV",P69="NAV",P68="-",P69="-",ISERROR(SUM(P68:P69,-(IF(P66="NAP",0,P66))))),"-",SUM(P68:P69,-(IF(P66="NAP",0,P66)))) -> -677257.4136 | Q70: -519856.2574 | R70: -318487.1683 | S70: 37094.56006 | T70: 3041911.614 | V70: =IF(OR(V68="",V69="",V68="NAV",V69="NAV",V68="-",V69="-",ISERROR(SUM(V68:V69,-(IF(V66="NAP",0,V66))))),"-",SUM(V68:V69,-(IF(V66="NAP",0,V66)))) -> - | W70: - | X70: - | Y70: - | Z70: - | AA70: - | AB70: - | AC70: - | AD70: - | AE70: - | AG70: =IF(OR(AG68="",AG69="",AG68="NAV",AG69="NAV",AG68="-",AG69="-",ISERROR(SUM(AG68:AG69,-(IF(AG66="NAP",0,AG66))))),"-",SUM(AG68:AG69,-(IF(AG66="NAP",0,AG66)))) -> - | AH70: - | AI70: - | AJ70: - | AM70: =IF(OR(AM68="",AM69="",AM68="NAV",AM69="NAV",AM68="-",AM69="-",ISERROR(SUM(AM68:AM69,-(IF(AM66="NAP",0,AM66))))),"-",SUM(AM68:AM69,-(IF(AM66="NAP",0,AM66)))) -> - | AN70: - | AO70: - | AP70: - | AQ70: - | AR70: - | AS70: - | AT70: - | AV70: =IF(OR(AV68="",AV69="",AV68="NAV",AV69="NAV",AV68="-",AV69="-",ISERROR(SUM(AV68:AV69,-(IF(AV66="NAP",0,AV66))))),"-",SUM(AV68:AV69,-(IF(AV66="NAP",0,AV66)))) -> - | AW70: - | AX70: - | AY70: - | AZ70: - | BA70: -
B73: Memorandum items
A74: D2_D3 | B74: D2-D3 | C74: Taxes less subsidies on production and imports | D74: Select a method | F74: =IF(OR(F75="",F78="",F75="NAV",F78="NAV",F75="-",F78="-",ISERROR(SUM(F75,-(IF(F78="NAP",0,F78))))),"-",SUM(F75,-(IF(F78="NAP",0,F78)))) -> - | G74: =IF(OR(G75="",G78="",G75="NAV",G78="NAV",G75="-",G78="-",ISERROR(SUM(G75,-(IF(G78="NAP",0,G78))))),"-",SUM(G75,-(IF(G78="NAP",0,G78)))) -> - | H74: - | I74: - | J74: - | K74: - | L74: - | M74: - | P74: =IF(OR(P75="",P78="",P75="NAV",P78="NAV",P75="-",P78="-",ISERROR(SUM(P75,-(IF(P78="NAP",0,P78))))),"-",SUM(P75,-(IF(P78="NAP",0,P78)))) -> - | Q74: - | R74: - | S74: - | T74: - | V74: =IF(OR(V75="",V78="",V75="NAV",V78="NAV",V75="-",V78="-",ISERROR(SUM(V75,-(IF(V78="NAP",0,V78))))),"-",SUM(V75,-(IF(V78="NAP",0,V78)))) -> - | W74: - | X74: - | Y74: - | Z74: - | AA74: - | AB74: - | AC74: - | AD74: - | AE74: - | AG74: =IF(OR(AG75="",AG78="",AG75="NAV",AG78="NAV",AG75="-",AG78="-",ISERROR(SUM(AG75,-(IF(AG78="NAP",0,AG78))))),"-",SUM(AG75,-(IF(AG78="NAP",0,AG78)))) -> - | AH74: - | AI74: - | AJ74: - | AM74: =IF(OR(AM75="",AM78="",AM75="NAV",AM78="NAV",AM75="-",AM78="-",ISERROR(SUM(AM75,-(IF(AM78="NAP",0,AM78))))),"-",SUM(AM75,-(IF(AM78="NAP",0,AM78)))) -> - | AN74: - | AO74: - | AP74: - | AQ74: - | AR74: - | AS74: - | AT74: - | AV74: =IF(OR(AV75="",AV78="",AV75="NAV",AV78="NAV",AV75="-",AV78="-",ISERROR(SUM(AV75,-(IF(AV78="NAP",0,AV78))))),"-",SUM(AV75,-(IF(AV78="NAP",0,AV78)))) -> - | AW74: - | AX74: - | AY74: - | AZ74: - | BA74: -
A75: D2 | B75: D2 | C75: Taxes on production and imports | D75: Select a method | F75: =IF(OR(F76="",F77="",F76="NAV",F77="NAV",F76="-",F77="-",ISERROR(SUM(F76,(IF(F77="NAP",0,F77))))),"-",SUM(F76,(IF(F77="NAP",0,F77)))) -> - | G75: =IF(OR(G76="",G77="",G76="NAV",G77="NAV",G76="-",G77="-",ISERROR(SUM(G76,(IF(G77="NAP",0,G77))))),"-",SUM(G76,(IF(G77="NAP",0,G77)))) -> - | H75: - | I75: - | J75: - | K75: - | L75: - | M75: - | P75: =IF(OR(P76="",P77="",P76="NAV",P77="NAV",P76="-",P77="-",ISERROR(SUM(P76,(IF(P77="NAP",0,P77))))),"-",SUM(P76,(IF(P77="NAP",0,P77)))) -> - | Q75: - | R75: - | S75: - | T75: - | V75: =IF(OR(V76="",V77="",V76="NAV",V77="NAV",V76="-",V77="-",ISERROR(SUM(V76,(IF(V77="NAP",0,V77))))),"-",SUM(V76,(IF(V77="NAP",0,V77)))) -> - | W75: - | X75: - | Y75: - | Z75: - | AA75: - | AB75: - | AC75: - | AD75: - | AE75: - | AG75: =IF(OR(AG76="",AG77="",AG76="NAV",AG77="NAV",AG76="-",AG77="-",ISERROR(SUM(AG76,(IF(AG77="NAP",0,AG77))))),"-",SUM(AG76,(IF(AG77="NAP",0,AG77)))) -> - | AH75: - | AI75: - | AJ75: - | AM75: =IF(OR(AM76="",AM77="",AM76="NAV",AM77="NAV",AM76="-",AM77="-",ISERROR(SUM(AM76,(IF(AM77="NAP",0,AM77))))),"-",SUM(AM76,(IF(AM77="NAP",0,AM77)))) -> - | AN75: - | AO75: - | AP75: - | AQ75: - | AR75: - | AS75: - | AT75: - | AV75: =IF(OR(AV76="",AV77="",AV76="NAV",AV77="NAV",AV76="-",AV77="-",ISERROR(SUM(AV76,(IF(AV77="NAP",0,AV77))))),"-",SUM(AV76,(IF(AV77="NAP",0,AV77)))) -> - | AW75: - | AX75: - | AY75: - | AZ75: - | BA75: -
A76: D21 | B76: D21 | C76: Taxes on products | D76: Select a method
A77: D29 | B77: D29 | C77: Other taxes on production | D77: Select a method
A78: D3 | B78: D3 | C78: Subsidies | D78: Select a method | F78: =IF(OR(F79="",F80="",F79="NAV",F80="NAV",F79="-",F80="-",ISERROR(SUM(F79,(IF(F80="NAP",0,F80))))),"-",SUM(F79,(IF(F80="NAP",0,F80)))) -> - | G78: =IF(OR(G79="",G80="",G79="NAV",G80="NAV",G79="-",G80="-",ISERROR(SUM(G79,(IF(G80="NAP",0,G80))))),"-",SUM(G79,(IF(G80="NAP",0,G80)))) -> - | H78: - | I78: - | J78: - | K78: - | L78: - | M78: - | P78: =IF(OR(P79="",P80="",P79="NAV",P80="NAV",P79="-",P80="-",ISERROR(SUM(P79,(IF(P80="NAP",0,P80))))),"-",SUM(P79,(IF(P80="NAP",0,P80)))) -> - | Q78: - | R78: - | S78: - | T78: - | V78: =IF(OR(V79="",V80="",V79="NAV",V80="NAV",V79="-",V80="-",ISERROR(SUM(V79,(IF(V80="NAP",0,V80))))),"-",SUM(V79,(IF(V80="NAP",0,V80)))) -> - | W78: - | X78: - | Y78: - | Z78: - | AA78: - | AB78: - | AC78: - | AD78: - | AE78: - | AG78: =IF(OR(AG79="",AG80="",AG79="NAV",AG80="NAV",AG79="-",AG80="-",ISERROR(SUM(AG79,(IF(AG80="NAP",0,AG80))))),"-",SUM(AG79,(IF(AG80="NAP",0,AG80)))) -> - | AH78: - | AI78: - | AJ78: - | AM78: =IF(OR(AM79="",AM80="",AM79="NAV",AM80="NAV",AM79="-",AM80="-",ISERROR(SUM(AM79,(IF(AM80="NAP",0,AM80))))),"-",SUM(AM79,(IF(AM80="NAP",0,AM80)))) -> - | AN78: - | AO78: - | AP78: - | AQ78: - | AR78: - | AS78: - | AT78: - | AV78: =IF(OR(AV79="",AV80="",AV79="NAV",AV80="NAV",AV79="-",AV80="-",ISERROR(SUM(AV79,(IF(AV80="NAP",0,AV80))))),"-",SUM(AV79,(IF(AV80="NAP",0,AV80)))) -> - | AW78: - | AX78: - | AY78: - | AZ78: - | BA78: -
A79: D31 | B79: D31 | C79: Subsidies on products | D79: Select a method
A80: D39 | B80: D39 | C80: Other subsidies on production | D80: Select a method
A81: D21_D31 | B81: D21-D31 | C81: Taxes less subsidies on products | D81: Select a method | F81: =IF(OR(F76="",F79="",F76="NAV",F79="NAV",F76="-",F79="-",ISERROR(SUM(F76,-(IF(F79="NAP",0,F79))))),"-",SUM(F76,-(IF(F79="NAP",0,F79)))) -> - | G81: =IF(OR(G76="",G79="",G76="NAV",G79="NAV",G76="-",G79="-",ISERROR(SUM(G76,-(IF(G79="NAP",0,G79))))),"-",SUM(G76,-(IF(G79="NAP",0,G79)))) -> - | H81: - | I81: - | J81: - | K81: - | L81: - | M81: - | P81: =IF(OR(P76="",P79="",P76="NAV",P79="NAV",P76="-",P79="-",ISERROR(SUM(P76,-(IF(P79="NAP",0,P79))))),"-",SUM(P76,-(IF(P79="NAP",0,P79)))) -> - | Q81: - | R81: - | S81: - | T81: - | V81: =IF(OR(V76="",V79="",V76="NAV",V79="NAV",V76="-",V79="-",ISERROR(SUM(V76,-(IF(V79="NAP",0,V79))))),"-",SUM(V76,-(IF(V79="NAP",0,V79)))) -> - | W81: - | X81: - | Y81: - | Z81: - | AA81: - | AB81: - | AC81: - | AD81: - | AE81: - | AG81: =IF(OR(AG76="",AG79="",AG76="NAV",AG79="NAV",AG76="-",AG79="-",ISERROR(SUM(AG76,-(IF(AG79="NAP",0,AG79))))),"-",SUM(AG76,-(IF(AG79="NAP",0,AG79)))) -> - | AH81: - | AI81: - | AJ81: - | AM81: =IF(OR(AM76="",AM79="",AM76="NAV",AM79="NAV",AM76="-",AM79="-",ISERROR(SUM(AM76,-(IF(AM79="NAP",0,AM79))))),"-",SUM(AM76,-(IF(AM79="NAP",0,AM79)))) -> - | AN81: - | AO81: - | AP81: - | AQ81: - | AR81: - | AS81: - | AT81: - | AV81: =IF(OR(AV76="",AV79="",AV76="NAV",AV79="NAV",AV76="-",AV79="-",ISERROR(SUM(AV76,-(IF(AV79="NAP",0,AV79))))),"-",SUM(AV76,-(IF(AV79="NAP",0,AV79)))) -> - | AW81: - | AX81: - | AY81: - | AZ81: - | BA81: -
A82: D29_D39 | B82: D29-D39 | C82: Other taxes less subsidies on production | D82: Select a method | F82: =IF(OR(F77="",F80="",F77="NAV",F80="NAV",F77="-",F80="-",ISERROR(SUM(F77,-(IF(F80="NAP",0,F80))))),"-",SUM(F77,-(IF(F80="NAP",0,F80)))) -> - | G82: =IF(OR(G77="",G80="",G77="NAV",G80="NAV",G77="-",G80="-",ISERROR(SUM(G77,-(IF(G80="NAP",0,G80))))),"-",SUM(G77,-(IF(G80="NAP",0,G80)))) -> - | H82: - | I82: - | J82: - | K82: - | L82: - | M82: - | P82: =IF(OR(P77="",P80="",P77="NAV",P80="NAV",P77="-",P80="-",ISERROR(SUM(P77,-(IF(P80="NAP",0,P80))))),"-",SUM(P77,-(IF(P80="NAP",0,P80)))) -> - | Q82: - | R82: - | S82: - | T82: - | V82: =IF(OR(V77="",V80="",V77="NAV",V80="NAV",V77="-",V80="-",ISERROR(SUM(V77,-(IF(V80="NAP",0,V80))))),"-",SUM(V77,-(IF(V80="NAP",0,V80)))) -> - | W82: - | X82: - | Y82: - | Z82: - | AA82: - | AB82: - | AC82: - | AD82: - | AE82: - | AG82: =IF(OR(AG77="",AG80="",AG77="NAV",AG80="NAV",AG77="-",AG80="-",ISERROR(SUM(AG77,-(IF(AG80="NAP",0,AG80))))),"-",SUM(AG77,-(IF(AG80="NAP",0,AG80)))) -> - | AH82: - | AI82: - | AJ82: - | AM82: =IF(OR(AM77="",AM80="",AM77="NAV",AM80="NAV",AM77="-",AM80="-",ISERROR(SUM(AM77,-(IF(AM80="NAP",0,AM80))))),"-",SUM(AM77,-(IF(AM80="NAP",0,AM80)))) -> - | AN82: - | AO82: - | AP82: - | AQ82: - | AR82: - | AS82: - | AT82: - | AV82: =IF(OR(AV77="",AV80="",AV77="NAV",AV80="NAV",AV77="-",AV80="-",ISERROR(SUM(AV77,-(IF(AV80="NAP",0,AV80))))),"-",SUM(AV77,-(IF(AV80="NAP",0,AV80)))) -> - | AW82: - | AX82: - | AY82: - | AZ82: - | BA82: -
A84: XDHHCE | B84: XDHHCE | C84: Consumer durables | D84: Select a method | F84: =IF(OR(F85="",F86="",F85="NAV",F86="NAV",F85="-",F86="-",ISERROR(SUM(F85,(IF(F86="NAP",0,F86))))),"-",SUM(F85,(IF(F86="NAP",0,F86)))) -> - | G84: =IF(OR(G85="",G86="",G85="NAV",G86="NAV",G85="-",G86="-",ISERROR(SUM(G85,(IF(G86="NAP",0,G86))))),"-",SUM(G85,(IF(G86="NAP",0,G86)))) -> - | H84: - | I84: - | J84: - | K84: - | L84: - | M84: - | P84: =IF(OR(P85="",P86="",P85="NAV",P86="NAV",P85="-",P86="-",ISERROR(SUM(P85,(IF(P86="NAP",0,P86))))),"-",SUM(P85,(IF(P86="NAP",0,P86)))) -> - | Q84: - | R84: - | S84: - | T84: - | V84: =IF(OR(V85="",V86="",V85="NAV",V86="NAV",V85="-",V86="-",ISERROR(SUM(V85,(IF(V86="NAP",0,V86))))),"-",SUM(V85,(IF(V86="NAP",0,V86)))) -> - | W84: - | X84: - | Y84: - | Z84: - | AA84: - | AB84: - | AC84: - | AD84: - | AE84: - | AG84: =IF(OR(AG85="",AG86="",AG85="NAV",AG86="NAV",AG85="-",AG86="-",ISERROR(SUM(AG85,(IF(AG86="NAP",0,AG86))))),"-",SUM(AG85,(IF(AG86="NAP",0,AG86)))) -> - | AH84: - | AI84: - | AJ84: - | AM84: =IF(OR(AM85="",AM86="",AM85="NAV",AM86="NAV",AM85="-",AM86="-",ISERROR(SUM(AM85,(IF(AM86="NAP",0,AM86))))),"-",SUM(AM85,(IF(AM86="NAP",0,AM86)))) -> - | AN84: - | AO84: - | AP84: - | AQ84: - | AR84: - | AS84: - | AT84: - | AV84: =IF(OR(AV85="",AV86="",AV85="NAV",AV86="NAV",AV85="-",AV86="-",ISERROR(SUM(AV85,(IF(AV86="NAP",0,AV86))))),"-",SUM(AV85,(IF(AV86="NAP",0,AV86)))) -> - | AW84: - | AX84: - | AY84: - | AZ84: - | BA84: -
A85: XDHHCE2 | B85: XDHHCE2 | C85: of which: purchases of vehicles | D85: Select a method
A86: XDHHCEX | B86: XDHHCEX | C86: of which: others | D86: Select a method
A88: B8n | B88: B8n | C88: Net Saving | F88: =IF(OR(Income!F99="",F69="",Income!F99="NAV",F69="NAV",Income!F99="-",F69="-",ISERROR(SUM(Income!F99,F69,-(IF(F66="NAP",0,F66))))),"-",SUM(Income!F99,F69,-(IF(F66="NAP",0,F66)))) -> - | G88: =IF(OR(Income!G99="",G69="",Income!G99="NAV",G69="NAV",Income!G99="-",G69="-",ISERROR(SUM(Income!G99,G69,-(IF(G66="NAP",0,G66))))),"-",SUM(Income!G99,G69,-(IF(G66="NAP",0,G66)))) -> - | H88: =IF(OR(Income!H99="",H69="",Income!H99="NAV",H69="NAV",Income!H99="-",H69="-",ISERROR(SUM(Income!H99,H69,-(IF(H66="NAP",0,H66))))),"-",SUM(Income!H99,H69,-(IF(H66="NAP",0,H66)))) -> - | I88: =IF(OR(Income!I99="",I69="",Income!I99="NAV",I69="NAV",Income!I99="-",I69="-",ISERROR(SUM(Income!I99,I69,-(IF(I66="NAP",0,I66))))),"-",SUM(Income!I99,I69,-(IF(I66="NAP",0,I66)))) -> - | J88: =IF(OR(Income!J99="",J69="",Income!J99="NAV",J69="NAV",Income!J99="-",J69="-",ISERROR(SUM(Income!J99,J69,-(IF(J66="NAP",0,J66))))),"-",SUM(Income!J99,J69,-(IF(J66="NAP",0,J66)))) -> - | K88: =IF(OR(Income!K99="",K69="",Income!K99="NAV",K69="NAV",Income!K99="-",K69="-",ISERROR(SUM(Income!K99,K69,-(IF(K66="NAP",0,K66))))),"-",SUM(Income!K99,K69,-(IF(K66="NAP",0,K66)))) -> - | L88: =IF(OR(Income!L99="",L69="",Income!L99="NAV",L69="NAV",Income!L99="-",L69="-",ISERROR(SUM(Income!L99,L69,-(IF(L66="NAP",0,L66))))),"-",SUM(Income!L99,L69,-(IF(L66="NAP",0,L66)))) -> - | M88: =IF(OR(Income!M99="",M69="",Income!M99="NAV",M69="NAV",Income!M99="-",M69="-",ISERROR(SUM(Income!M99,M69,-(IF(M66="NAP",0,M66))))),"-",SUM(Income!M99,M69,-(IF(M66="NAP",0,M66)))) -> - | P88: =IF(OR(Income!P99="",P69="",Income!P99="NAV",P69="NAV",Income!P99="-",P69="-",ISERROR(SUM(Income!P99,P69,-(IF(P66="NAP",0,P66))))),"-",SUM(Income!P99,P69,-(IF(P66="NAP",0,P66)))) -> - | Q88: =IF(OR(Income!Q99="",Q69="",Income!Q99="NAV",Q69="NAV",Income!Q99="-",Q69="-",ISERROR(SUM(Income!Q99,Q69,-(IF(Q66="NAP",0,Q66))))),"-",SUM(Income!Q99,Q69,-(IF(Q66="NAP",0,Q66)))) -> - | R88: =IF(OR(Income!R99="",R69="",Income!R99="NAV",R69="NAV",Income!R99="-",R69="-",ISERROR(SUM(Income!R99,R69,-(IF(R66="NAP",0,R66))))),"-",SUM(Income!R99,R69,-(IF(R66="NAP",0,R66)))) -> - | S88: =IF(OR(Income!S99="",S69="",Income!S99="NAV",S69="NAV",Income!S99="-",S69="-",ISERROR(SUM(Income!S99,S69,-(IF(S66="NAP",0,S66))))),"-",SUM(Income!S99,S69,-(IF(S66="NAP",0,S66)))) -> - | T88: =IF(OR(Income!T99="",T69="",Income!T99="NAV",T69="NAV",Income!T99="-",T69="-",ISERROR(SUM(Income!T99,T69,-(IF(T66="NAP",0,T66))))),"-",SUM(Income!T99,T69,-(IF(T66="NAP",0,T66)))) -> - | V88: =IF(OR(Income!V99="",V69="",Income!V99="NAV",V69="NAV",Income!V99="-",V69="-",ISERROR(SUM(Income!V99,V69,-(IF(V66="NAP",0,V66))))),"-",SUM(Income!V99,V69,-(IF(V66="NAP",0,V66)))) -> - | W88: =IF(OR(Income!W99="",W69="",Income!W99="NAV",W69="NAV",Income!W99="-",W69="-",ISERROR(SUM(Income!W99,W69,-(IF(W66="NAP",0,W66))))),"-",SUM(Income!W99,W69,-(IF(W66="NAP",0,W66)))) -> - | X88: =IF(OR(Income!X99="",X69="",Income!X99="NAV",X69="NAV",Income!X99="-",X69="-",ISERROR(SUM(Income!X99,X69,-(IF(X66="NAP",0,X66))))),"-",SUM(Income!X99,X69,-(IF(X66="NAP",0,X66)))) -> - | Y88: =IF(OR(Income!Y99="",Y69="",Income!Y99="NAV",Y69="NAV",Income!Y99="-",Y69="-",ISERROR(SUM(Income!Y99,Y69,-(IF(Y66="NAP",0,Y66))))),"-",SUM(Income!Y99,Y69,-(IF(Y66="NAP",0,Y66)))) -> - | Z88: =IF(OR(Income!Z99="",Z69="",Income!Z99="NAV",Z69="NAV",Income!Z99="-",Z69="-",ISERROR(SUM(Income!Z99,Z69,-(IF(Z66="NAP",0,Z66))))),"-",SUM(Income!Z99,Z69,-(IF(Z66="NAP",0,Z66)))) -> - | AA88: =IF(OR(Income!AA99="",AA69="",Income!AA99="NAV",AA69="NAV",Income!AA99="-",AA69="-",ISERROR(SUM(Income!AA99,AA69,-(IF(AA66="NAP",0,AA66))))),"-",SUM(Income!AA99,AA69,-(IF(AA66="NAP",0,AA66)))) -> - | AB88: =IF(OR(Income!AB99="",AB69="",Income!AB99="NAV",AB69="NAV",Income!AB99="-",AB69="-",ISERROR(SUM(Income!AB99,AB69,-(IF(AB66="NAP",0,AB66))))),"-",SUM(Income!AB99,AB69,-(IF(AB66="NAP",0,AB66)))) -> - | AC88: =IF(OR(Income!AC99="",AC69="",Income!AC99="NAV",AC69="NAV",Income!AC99="-",AC69="-",ISERROR(SUM(Income!AC99,AC69,-(IF(AC66="NAP",0,AC66))))),"-",SUM(Income!AC99,AC69,-(IF(AC66="NAP",0,AC66)))) -> - | AD88: =IF(OR(Income!AD99="",AD69="",Income!AD99="NAV",AD69="NAV",Income!AD99="-",AD69="-",ISERROR(SUM(Income!AD99,AD69,-(IF(AD66="NAP",0,AD66))))),"-",SUM(Income!AD99,AD69,-(IF(AD66="NAP",0,AD66)))) -> - | AE88: =IF(OR(Income!AE99="",AE69="",Income!AE99="NAV",AE69="NAV",Income!AE99="-",AE69="-",ISERROR(SUM(Income!AE99,AE69,-(IF(AE66="NAP",0,AE66))))),"-",SUM(Income!AE99,AE69,-(IF(AE66="NAP",0,AE66)))) -> - | AG88: =IF(OR(Income!AG99="",AG69="",Income!AG99="NAV",AG69="NAV",Income!AG99="-",AG69="-",ISERROR(SUM(Income!AG99,AG69,-(IF(AG66="NAP",0,AG66))))),"-",SUM(Income!AG99,AG69,-(IF(AG66="NAP",0,AG66)))) -> - | AH88: =IF(OR(Income!AH99="",AH69="",Income!AH99="NAV",AH69="NAV",Income!AH99="-",AH69="-",ISERROR(SUM(Income!AH99,AH69,-(IF(AH66="NAP",0,AH66))))),"-",SUM(Income!AH99,AH69,-(IF(AH66="NAP",0,AH66)))) -> - | AI88: =IF(OR(Income!AI99="",AI69="",Income!AI99="NAV",AI69="NAV",Income!AI99="-",AI69="-",ISERROR(SUM(Income!AI99,AI69,-(IF(AI66="NAP",0,AI66))))),"-",SUM(Income!AI99,AI69,-(IF(AI66="NAP",0,AI66)))) -> - | AJ88: =IF(OR(Income!AJ99="",AJ69="",Income!AJ99="NAV",AJ69="NAV",Income!AJ99="-",AJ69="-",ISERROR(SUM(Income!AJ99,AJ69,-(IF(AJ66="NAP",0,AJ66))))),"-",SUM(Income!AJ99,AJ69,-(IF(AJ66="NAP",0,AJ66)))) -> - | AM88: =IF(OR(Income!AM99="",AM69="",Income!AM99="NAV",AM69="NAV",Income!AM99="-",AM69="-",ISERROR(SUM(Income!AM99,AM69,-(IF(AM66="NAP",0,AM66))))),"-",SUM(Income!AM99,AM69,-(IF(AM66="NAP",0,AM66)))) -> - | AN88: =IF(OR(Income!AN99="",AN69="",Income!AN99="NAV",AN69="NAV",Income!AN99="-",AN69="-",ISERROR(SUM(Income!AN99,AN69,-(IF(AN66="NAP",0,AN66))))),"-",SUM(Income!AN99,AN69,-(IF(AN66="NAP",0,AN66)))) -> - | AO88: =IF(OR(Income!AO99="",AO69="",Income!AO99="NAV",AO69="NAV",Income!AO99="-",AO69="-",ISERROR(SUM(Income!AO99,AO69,-(IF(AO66="NAP",0,AO66))))),"-",SUM(Income!AO99,AO69,-(IF(AO66="NAP",0,AO66)))) -> - | AP88: =IF(OR(Income!AP99="",AP69="",Income!AP99="NAV",AP69="NAV",Income!AP99="-",AP69="-",ISERROR(SUM(Income!AP99,AP69,-(IF(AP66="NAP",0,AP66))))),"-",SUM(Income!AP99,AP69,-(IF(AP66="NAP",0,AP66)))) -> - | AQ88: =IF(OR(Income!AQ99="",AQ69="",Income!AQ99="NAV",AQ69="NAV",Income!AQ99="-",AQ69="-",ISERROR(SUM(Income!AQ99,AQ69,-(IF(AQ66="NAP",0,AQ66))))),"-",SUM(Income!AQ99,AQ69,-(IF(AQ66="NAP",0,AQ66)))) -> - | AR88: =IF(OR(Income!AR99="",AR69="",Income!AR99="NAV",AR69="NAV",Income!AR99="-",AR69="-",ISERROR(SUM(Income!AR99,AR69,-(IF(AR66="NAP",0,AR66))))),"-",SUM(Income!AR99,AR69,-(IF(AR66="NAP",0,AR66)))) -> - | AS88: =IF(OR(Income!AS99="",AS69="",Income!AS99="NAV",AS69="NAV",Income!AS99="-",AS69="-",ISERROR(SUM(Income!AS99,AS69,-(IF(AS66="NAP",0,AS66))))),"-",SUM(Income!AS99,AS69,-(IF(AS66="NAP",0,AS66)))) -> - | AT88: =IF(OR(Income!AT99="",AT69="",Income!AT99="NAV",AT69="NAV",Income!AT99="-",AT69="-",ISERROR(SUM(Income!AT99,AT69,-(IF(AT66="NAP",0,AT66))))),"-",SUM(Income!AT99,AT69,-(IF(AT66="NAP",0,AT66)))) -> - | AV88: =IF(OR(Income!AV99="",AV69="",Income!AV99="NAV",AV69="NAV",Income!AV99="-",AV69="-",ISERROR(SUM(Income!AV99,AV69,-(IF(AV66="NAP",0,AV66))))),"-",SUM(Income!AV99,AV69,-(IF(AV66="NAP",0,AV66)))) -> - | AW88: =IF(OR(Income!AW99="",AW69="",Income!AW99="NAV",AW69="NAV",Income!AW99="-",AW69="-",ISERROR(SUM(Income!AW99,AW69,-(IF(AW66="NAP",0,AW66))))),"-",SUM(Income!AW99,AW69,-(IF(AW66="NAP",0,AW66)))) -> - | AX88: =IF(OR(Income!AX99="",AX69="",Income!AX99="NAV",AX69="NAV",Income!AX99="-",AX69="-",ISERROR(SUM(Income!AX99,AX69,-(IF(AX66="NAP",0,AX66))))),"-",SUM(Income!AX99,AX69,-(IF(AX66="NAP",0,AX66)))) -> - | AY88: =IF(OR(Income!AY99="",AY69="",Income!AY99="NAV",AY69="NAV",Income!AY99="-",AY69="-",ISERROR(SUM(Income!AY99,AY69,-(IF(AY66="NAP",0,AY66))))),"-",SUM(Income!AY99,AY69,-(IF(AY66="NAP",0,AY66)))) -> - | AZ88: =IF(OR(Income!AZ99="",AZ69="",Income!AZ99="NAV",AZ69="NAV",Income!AZ99="-",AZ69="-",ISERROR(SUM(Income!AZ99,AZ69,-(IF(AZ66="NAP",0,AZ66))))),"-",SUM(Income!AZ99,AZ69,-(IF(AZ66="NAP",0,AZ66)))) -> - | BA88: =IF(OR(Income!BA99="",BA69="",Income!BA99="NAV",BA69="NAV",Income!BA99="-",BA69="-",ISERROR(SUM(Income!BA99,BA69,-(IF(BA66="NAP",0,BA66))))),"-",SUM(Income!BA99,BA69,-(IF(BA66="NAP",0,BA66)))) -> -

Sheet HDA_indicators
B1: Table 1: Key Inequality Indicators for Disposable Income (B6g)
B2: Indicator | C2: Before HDA (SILC) | D2: After HDA (National Accounts) | E2: Absolute Change
B3: Gini Coefficient (%) | C3: 36.76 | D3: 35.92 | E3: -0.84
B4: Quintile Share Ratio (Q5/Q1) | C4: 6.97 | D4: 5.97 | E4: -1
A7: Table 2: Distributional Profile by Key Income Components
A8: Code | B8: Component / Transaction Type | C8: Gini Before (%) | D8: Gini After (%) | E8: Q5/Q1 Before | F8: Q5/Q1 After | G8: Q5/Q1 Change
A9: B2R1g | B9: Owner occupied dwellings | C9: 46.66343678 | D9: 46.66343678 | E9: -5.684341886e-14 | F9: 1.625109665 | G9: 2.259931963
A10: B2R2g | B10: Leasing of dwellings | C10: 97.96400706 | D10: 97.96400706 | E10: 0 | F10: 22.16586718 | G10: 18.81685164
A11: B3Rg | B11: Gross mixed income | C11: 89.63109467 | D11: 81.49062728 | E11: -8.140467383 | F11: 3.700576213 | G11: 4.148811236
A12: B3R1g | B12: Own account production | C12: 75.00364128 | D12: 77.23047248 | E12: 2.226831197 | F12: 0.7354701277 | G12: 1.891762443
A13: B3R2g | B13: Underground production non-registered self-employment | C13: 0 | D13: 83.86503036 | E13: 0 | F13: 0 | G13: 2.418359334
A14: B3R3g | B14: Mixed income excluding underground and own account production | C14: 95.92134425 | D14: 95.42480087 | E14: -0.4965433731 | F14: 5.601434941 | G14: 8.083932993
A15: D1R | B15: Compensation of employees | C15: 56.09332873 | D15: 56.07840495 | E15: -0.01492378155 | F15: 34.16051725 | G15: 17.09606285
A16: D11R | B16: Wages and salaries | C16: 55.81459887 | D16: 55.81861642 | E16: 0.004017549048 | F16: 33.62172732 | G16: 16.90840305
A17: D121R | B17: Employers' actual social contributions (counterpart in D611) | C17: 59.71967603 | D17: 59.72012434 | E17: 0.0004483087833 | F17: 37.11835567 | G17: 18.18101756
A18: D41R | B18: Interest received | C18: 99.40020886 | D18: 82.68559601 | E18: -16.71461285 | F18: 79.6946013 | G18: 4.00701177
A19: D41R' | B19: Interest received (not adjusted for FISIM) | C19: 99.40020886 | D19: 82.68559601 | E19: -16.71461285 | F19: 79.6946013 | G19: 4.00701177
A20: D41R_FISIM | B20: Adjustment for FISIM (positive sign) | C20: 0 | D20: 82.68559601 | E20: 0 | F20: 0 | G20: 4.00701177
A21: D42R | B21: Distributed income of corporations | C21: 99.69144744 | D21: 99.413592 | E21: -0.2778554445 | F21: 9886.770107 | G21: 9275.549411
A22: D421R | B22: Distributed income of corporations | C22: 99.69144744 | D22: 99.413592 | E22: -0.2778554445 | F22: 9886.770107 | G22: 9275.549411
A23: D422R | B23: Distributed income of corporations | C23: 99.69144744 | D23: 99.413592 | E23: -0.2778554445 | F23: 9886.770107 | G23: 9275.549411
A24: D41P | B24: Interest paid | C24: 95.13558151 | D24: 89.09796153 | E24: -6.037619982 | F24: 31.43170345 | G24: 13.3446156
A25: D41P' | B25: Interest paid (not adjusted for FISIM) | C25: 95.13558151 | D25: 89.09796153 | E25: -6.037619982 | F25: 31.43170345 | G25: 13.3446156
A26: D41P_FISIM | B26: Adjustment for FISIM (negative sign) | C26: 0 | D26: 0 | E26: 0 | F26: 0 | G26: 0
A27: D51_D613_D614_D61sc | B27: Current taxes on income and wealth | C27: 61.71358512 | D27: 62.13683535 | E27: 0.4232502373 | F27: 39.304982 | G27: 23.48173307
A28: D51P | B28: Current taxes on income and wealth | C28: 0 | D28: 62.13683535 | E28: 0 | F28: 0 | G28: 23.48173307
A29: D59P | B29: Current taxes on income and wealth | C29: 0 | D29: 62.41112726 | E29: 0 | F29: 0 | G29: 3.681714895
A30: D611P | B30: Employers' actual social contributions paid (see corresponding item above) | C30: 0 | D30: 59.72012434 | E30: 0 | F30: 0 | G30: 18.18101756
A31: D612P | B31: Employers' imputed social contributions paid (see corresponding item above) | C31: 0 | D31: 55.75211399 | E31: 0 | F31: 0 | G31: 16.76302741
A32: D613P | B32: Households' actual social contributions | C32: 0 | D32: 62.13683535 | E32: 0 | F32: 0 | G32: 23.48173307
A33: D614P | B33: Households' social contributions supplements (see corresponding item D442R above) | C33: 0 | D33: 62.13683535 | E33: 0 | F33: 0 | G33: 23.48173307
A34: D6211R+D6221R | B34: Pension benefits | C34: 67.36318652 | D34: 67.00144481 | E34: -0.36174171 | F34: 0.889350132 | G34: 0.8371895895
A35: D6212R+D6222R | B35: Non-pension benefits | C35: 79.039778 | D35: 59.82141275 | E35: -19.21836525 | F35: 4.656484561 | G35: 3.474443674
A36: D71P | B36: Non-life insurance premiums (including D441AR (see above)) | C36: 67.07388309 | D36: 67.56031636 | E36: 0.4864332676 | F36: 8.930683053 | G36: 7.764985416
A37: D72R | B37: Non-life insurance claims | C37: 0 | D37: 67.56031636 | E37: 0 | F37: 0 | G37: 7.764985416
A38: D75R | B38: Miscellaneous current transfers received | C38: 94.0274126 | D38: 88.84747232 | E38: -5.179940277 | F38: 1.567065156 | G38: 6.741766534
A39: D75P | B39: Miscellaneous current transfers paid | C39: 95.6519328 | D39: 92.33852718 | E39: -3.313405623 | F39: 2.786561102 | G39: 1.248292936
A40: D63R1 | B40: Education | C40: 0 | D40: 70.80093257 | E40: 0 | F40: 0 | G40: 1.974047497
A41: D63R2 | B41: Health | C41: 0 | D41: 22.50832694 | E41: 0 | F41: 0 | G41: 0.7069799199
A42: B5g | B42: Balance of primary incomes | C42: 0 | D42: 52.291511 | E42: 0 | F42: 0 | G42: 13.12427383
A43: B6g | B43: Disposable income | C43: 36.76036283 | D43: 35.92056887 | E43: -0.8397939635 | F43: 6.968509914 | G43: 5.965898437
A44: B8g | B44: Gross Saving | C44: 0 | D44: 83.42312738 | E44: 0 | F44: 0 | G44: 103.3874879
A47: Table 3: Distributional Profile by Key Consumption Components
A48: Code | B48: Component / Transaction Type | C48: Q5/Q1 HDA
A49: CP01 | B49: Food and non-alcoholic beverages | C49: 1.590932395
A50: CP02 | B50: Alcoholic beverages, tobacco and narcotics | C50: 1.609128007
A51: CP03 | B51: Clothing and footwear | C51: 5.664770504
A52: CP041 | B52: Actual rentals for housing | C52: 2.342262008
A53: CP042 | B53: Imputed rentals for housing | C53: 1.485713123
A54: CP043 | B54: Maintenance, repair and security of the dwelling | C54: 4.956766869
A55: CP044 | B55: Water supply and miscellaneous services relating to the dwelling | C55: 1.697479534
A56: CP045 | B56: Electricity, gas and other fuels | C56: 1.167625561
A57: CP05 | B57: Furnishings, households equipment and routine household maintenance | C57: 4.305652732
A58: CP061 | B58: Medicine and health products | C58: 0.938858446
A59: CP062 | B59: Out-patient care services | C59: 3.616236824
A60: CP063 | B60: Inpatient care services | C60: 2.452297826
A61: CP064 | B61: Other health services | C61: 4.095268609
A62: CP071 | B62: Purchases of vehicles | C62: 9.767744724
A63: CP072 | B63: Operation of personal transport equipment | C63: 6.170543436
A64: CP073 | B64: Passenger transport services | C64: 5.521354626
A65: CP074 | B65: Transport services of goods | C65: 0.5575633288
A66: CP08 | B66: Information and communication | C66: 2.48086056
A67: CP09 | B67: Recreation, sport and culture | C67: 7.780555243
A68: CP10 | B68: Education | C68: 29.48021155
A69: CP11 | B69: Restaurants and accommodation services | C69: 10.1049379
A70: CP121 | B70: Insurance | C70: 8.62759223
A71: CP1221 | B71: FISIM | C71: 9.531753557
A72: CP122X | B72: Other financial services | C72: 5.965898437
A73: CP13 | B73: Personal care, social protection and miscellaneous goods and services | C73: 4.92567535

Sheet Meta data
A1: Please answer all the questions by selecting “Yes” or “No” in the boxes where available and provide details when so requested
A3: Cut-off date
A5: Cut-off date: when did you retrieve the National Accounts data used for this exercise? | D5: The national accounts data used were the latest available T8 data transmitted to Eurostat on 20 October 2025.
A7: Cut-off date: when did you retrieve the micro datasets used for this exercise? | D7: The micro datasets used for this exercise were provided by the Social Statistics Department. The final EU-SILC microdata were received on 6 March 2026, and the final HBS microdata were received on 16 March 2026. These dates are considered the cut-off dates for the microdata used in this exercise.
A9: Reference year
A11: Do micro and macro sources share the same reference year? | B11: Yes | C11: If NO, please provide details:
A13: Do income and consumption refer to the same year? | B13: Yes | C13: If NO, please provide details:
A15: Population
A17: Are NPISHs reported together with the households? | B17: No | C17: If YES, can you please explain why (lack of time, lack of data sources)?
A19: Are the transactions related to the population not covered by micro data sources (e.g. institutional households and persons without a permanent address) separately identified and estimated? | B19: Yes | C19: If NO, please provide details:
A21: Is consumption adjusted for non-resident households' expenditures on the territory for each type of expenditures item? | B21: Yes | C21: If NO, please provide details:
A23: Does consumption include resident households’ expenditure abroad for each type of expenditure items? | B23: Yes | C23: If NO, please provide details:
A25: Do the distributional results include institutional households? If yes, is each institutional household treated as one single household or are the underlying individuals in these institutional households treated as single, separate households? | B25: No | C25: If YES, please provide details:
A27: Households
A29: Is the definition for households used in the exercise the same as in the 2008 SNA (4.149)? | B29: Yes | C29: If NO, please provide details:
A31: Is the "equivalised income quintiles/deciles" classification consistent with the handbook? | B31: Yes | C31: If NO, please provide details:
A33: Is the number of households by household type available by income quintile/decile? | B33: Yes | C33: If NO, please provide details: | D33: Not included in the standard output tables of this exercise. However, the calculation is technically feasible as the household type variables and weights are available within the underlying microdata and can be cross-tabulated by quintile upon request
A35: Income and Consumption
A37: Were you able to report distributional results for all income and consumption components? | B37: Yes | C37: If NO, please provide details:
A39: How do you link information across income and consumption (e.g., linking at the record level, statistical matching, linking at aggregated level)? | D39: Income and consumption information were linked at the household level using statistical matching, with EU-SILC as the recipient dataset and HBS as the donor dataset.
A41: STiK
A43: If health care STiK expenditures are included, have you used the insurance approach to allocate the amounts to households? | B43: Yes | C43: If NO, please provide details:
A45: Imputation process and methods
A47: How did you impute for illegal and underground activities? | D47: Illegal and underground activities were imputed using National Accounts benchmark totals and a combination of Method B, Method C, and Method D approaches depending on data availability. Where microdata signals were available (e.g. self-employment, income discrepancies, socio-demographic indicators), a structured scoring-based allocation was applied at household level. In cases with no reliable microdata or external distributional information, residual Method D proportional allocation was used based on suitable income proxies (B5g) . All allocations were calibrated to match National Accounts control totals and validated using distributional diagnostics.
A49: Did you apply a Pareto tail adjustment for any of the items? | B49: No | C49: If YES, please provide details on which items and please elaborate on the method used
A51: Are imputations generally done at the micro level or at the quintile/decile level? | D51: Imputations were carried out at the household (micro) level. National Accounts aggregates were first allocated to individual households using survey information, administrative data, or statistical matching, depending on the component. Quintile and decile estimates were then derived by aggregating the resulting household-level values.
A53: Did you apply methods B or C to distribute national accounts totals in line with the handbook? | B53: Yes | C53: If YES, please describe which variables/external data were used as proxies. | D53: Yes. Both Method A and Method B were applied, depending on data availability. Survey variables were used whenever a direct microdata counterpart existed (Method A). Where no suitable survey variable was available, National Accounts totals were allocated using proxy variables derived from administrative sources or statistical matching (Method B). Method C was not applied.
A55: Please describe any deviations from your standard approach as described in the previous question. | D55: No major deviations from the standard approach were applied. Allocation methods were selected according to data availability and the recommendations of the HDA Handbook.
A57: Publication
A59: Can all the data be shared with the other IO, i.e., Eurostat/OECD? | B59: Yes | C59: If NO, please list the exceptions.
A61: Can all the data in the blue cells be published? | B61: Yes | C61: If NO, please list the exceptions.
A63: Comparability with previous exercises
A65: Are the results directly comparable with those from previous exercises? | B65: No | C65: If NO, please provide details: | D65: Not relevant. This is the first experimental HDA exercise conducted within the project, so no previous results are available for comparison
A67: Any other deviations
A69: Please describe any other deviations from the handbook which may significantly affect the results and their comparability: | D69: Not relevant
A71: Any other comments
A73: Please add any other comment that you think might be of use for the Secretariat, suggestions for possible refinements to the questionnaire template or results on further analysis you have implemented.
